Workbook

Sheet 은평구총괄
B1: 은평구 등록장애인 현황 (2022. 7월 말 기준)
B3: 서울특별시 은평구 | J3: (단위 : 명)
B5: 자치구 | C5: 장애유형 | D5: 합계 | G5: 심한 장애 | J5: 심하지 않은 장애
D6: 계 | E6: 남 | F6: 여 | G6: 계 | H6: 남 | I6: 여 | J6: 계 | K6: 남 | L6: 여
B7: 은평구 | C7: 합 계 | D7: =SUM(D8:D22) -> 21747 | E7: =SUM(E8:E22) -> 12678 | F7: 9069 | G7: 8258 | H7: 5136 | I7: 3122 | J7: 13489 | K7: 7542 | L7: 5947
C8: 지체 | D8: 8847 | E8: 4838 | F8: 4009 | G8: 1440 | H8: 934 | I8: 506 | J8: 7407 | K8: 3904 | L8: 3503
C9: 시각 | D9: 2275 | E9: 1369 | F9: 906 | G9: 428 | H9: 235 | I9: 193 | J9: 1847 | K9: 1134 | L9: 713
C10: 청각 | D10: 3337 | E10: 1845 | F10: 1492 | G10: 703 | H10: 354 | I10: 349 | J10: 2634 | K10: 1491 | L10: 1143
C11: 언어 | D11: 187 | E11: 138 | F11: 49 | G11: 93 | H11: 69 | I11: 24 | J11: 94 | K11: 69 | L11: 25
C12: 지적 | D12: 1833 | E12: 1203 | F12: 630 | G12: 1833 | H12: 1203 | I12: 630 | J12: 0 | K12: 0 | L12: 0
C13: 뇌병변 | D13: 2209 | E13: 1313 | F13: 896 | G13: 1299 | H13: 734 | I13: 565 | J13: 910 | K13: 579 | L13: 331
C14: 자폐성 | D14: 389 | E14: 327 | F14: 62 | G14: 389 | H14: 327 | I14: 62 | J14: 0 | K14: 0 | L14: 0
C15: 정신 | D15: 1152 | E15: 707 | F15: 445 | G15: 1146 | H15: 701 | I15: 445 | J15: 6 | K15: 6 | L15: 0
C16: 신장 | D16: 891 | E16: 540 | F16: 351 | G16: 706 | H16: 440 | I16: 266 | J16: 185 | K16: 100 | L16: 85
C17: 심장 | D17: 55 | E17: 25 | F17: 30 | G17: 46 | H17: 18 | I17: 28 | J17: 9 | K17: 7 | L17: 2
C18: 호흡기 | D18: 122 | E18: 88 | F18: 34 | G18: 117 | H18: 86 | I18: 31 | J18: 5 | K18: 2 | L18: 3
C19: 간 | D19: 168 | E19: 113 | F19: 55 | G19: 12 | H19: 8 | I19: 4 | J19: 156 | K19: 105 | L19: 51
C20: 안면 | D20: 22 | E20: 11 | F20: 11 | G20: 10 | H20: 6 | I20: 4 | J20: 12 | K20: 5 | L20: 7
C21: 장루.요루 | D21: 193 | E21: 126 | F21: 67 | G21: 26 | H21: 15 | I21: 11 | J21: 167 | K21: 111 | L21: 56
C22: 뇌전증 | D22: 67 | E22: 35 | F22: 32 | G22: 10 | H22: 6 | I22: 4 | J22: 57 | K22: 29 | L22: 28

Sheet 유형별
A1: 은평구 동별 장애인현황(유형별) (2022. 7월말)
A2: 동별 | B2: 합계 | F2: 지체 | I2: 시각 | L2: 청각 | O2: 언어 | S2: 지적 | W2: 뇌병변 | Z2: 자폐 | AC2: 정신 | AF2: 신장 | AI2: 심장 | AM2: 호흡기 | AP2: 간 | AS2: 안면 | AV2: 장루.요루 | AY2: 뇌전증
B3: 합계 | C3: 남성 | D3: 여성 | F3: 소계 | G3: 남성 | H3: 여성 | I3: 소계 | J3: 남성 | K3: 여성 | L3: 소계 | M3: 남성 | N3: 여성 | O3: 소계 | Q3: 남성 | R3: 여성 | S3: 소계 | T3: 남성 | V3: 여성 | W3: 소계 | X3: 남성 | Y3: 여성 | Z3: 소계 | AA3: 남성 | AB3: 여성 | AC3: 소계 | AD3: 남성 | AE3: 여성 | AF3: 소계 | AG3: 남성 | AH3: 여성 | AI3: 소계 | AJ3: 남성 | AL3: 여성 | AM3: 소계 | AN3: 남성 | AO3: 여성 | AP3: 소계 | AQ3: 남성 | AR3: 여성 | AS3: 소계 | AT3: 남성 | AU3: 여성 | AV3: 소계 | AW3: 남성 | AX3: 여성 | AY3: 소계 | AZ3: 남성 | BA3: 여성
A4: 합 계 | B4: =SUM(B5:B20) -> 21747 | C4: =SUM(C5:C20) -> 12678 | D4: =SUM(D5:E20) -> 9069 | F4: =SUM(F5:F20) -> 8847 | G4: 4838 | H4: 4009 | I4: 2275 | J4: 1369 | K4: 906 | L4: 3337 | M4: 1845 | N4: 1492 | O4: =SUM(O5:P20) -> 187 | Q4: =SUM(Q5:Q20) -> 138 | R4: =SUM(R5:R20) -> 49 | S4: =SUM(S5:S20) -> 1833 | T4: =SUM(T5:U20) -> 1203 | V4: =SUM(V5:V20) -> 630 | W4: 2209 | X4: 1313 | Y4: 896 | Z4: 389 | AA4: 327 | AB4: 62 | AC4: 1152 | AD4: 707 | AE4: 445 | AF4: 891 | AG4: 540 | AH4: 351 | AI4: 55 | AJ4: =SUM(AJ5:AK20) -> 25 | AL4: =SUM(AL5:AL20) -> 30 | AM4: 122 | AN4: 88 | AO4: 34 | AP4: 168 | AQ4: 113 | AR4: 55 | AS4: 22 | AT4: 11 | AU4: 11 | AV4: 193 | AW4: 126 | AX4: 67 | AY4: 67 | AZ4: 35 | BA4: 32
A5: 녹번동 | B5: =SUM(F5,I5,L5,O5,S5,W5,Z5,AC5,AF5,AI5,AM5,AP5,AS5,AV5,AY5) -> 1664 | C5: =SUM(G5,J5,M5,Q5,T5,X5,AA5,AD5,AG5,AJ5,AN5,AQ5,AT5,AW5,AZ5) -> 952 | D5: =SUM(H5,K5,N5,R5,V5,Y5,AB5,AE5,AH5,AL5,AO5,AR5,AU5,AX5,BA5) -> 712 | F5: 710 | G5: 389 | H5: 321 | I5: 182 | J5: 121 | K5: 61 | L5: 287 | M5: 151 | N5: 136 | O5: 21 | Q5: 17 | R5: 4 | S5: 115 | T5: 75 | V5: 40 | W5: 158 | X5: 80 | Y5: 78 | Z5: 17 | AA5: 12 | AB5: 5 | AC5: 67 | AD5: 36 | AE5: 31 | AF5: 70 | AG5: 47 | AH5: 23 | AI5: 2 | AJ5: 0 | AL5: 2 | AM5: 5 | AN5: 3 | AO5: 2 | AP5: 12 | AQ5: 9 | AR5: 3 | AS5: 3 | AT5: 3 | AU5: 0 | AV5: 14 | AW5: 8 | AX5: 6 | AY5: 1 | AZ5: 1 | BA5: 0
A6: 불광1동 | B6: =SUM(F6,I6,L6,O6,S6,W6,Z6,AC6,AF6,AI6,AM6,AP6,AS6,AV6,AY6) -> 1689 | C6: =SUM(G6,J6,M6,Q6,T6,X6,AA6,AD6,AG6,AJ6,AN6,AQ6,AT6,AW6,AZ6) -> 947 | D6: =SUM(H6,K6,N6,R6,V6,Y6,AB6,AE6,AH6,AL6,AO6,AR6,AU6,AX6,BA6) -> 742 | F6: 690 | G6: 370 | H6: 320 | I6: 193 | J6: 121 | K6: 72 | L6: 278 | M6: 150 | N6: 128 | O6: 14 | Q6: 10 | R6: 4 | S6: 104 | T6: 59 | V6: 45 | W6: 175 | X6: 98 | Y6: 77 | Z6: 27 | AA6: 23 | AB6: 4 | AC6: 72 | AD6: 35 | AE6: 37 | AF6: 88 | AG6: 52 | AH6: 36 | AI6: 3 | AJ6: 2 | AL6: 1 | AM6: 7 | AN6: 7 | AO6: 0 | AP6: 21 | AQ6: 10 | AR6: 11 | AS6: 1 | AT6: 1 | AU6: 0 | AV6: 12 | AW6: 7 | AX6: 5 | AY6: 4 | AZ6: 2 | BA6: 2
A7: 불광2동 | B7: 1414 | C7: 826 | D7: 588 | F7: 560 | G7: 316 | H7: 244 | I7: 159 | J7: 97 | K7: 62 | L7: 252 | M7: 152 | N7: 100 | O7: 11 | Q7: 9 | R7: 2 | S7: 100 | T7: 60 | V7: 40 | W7: 131 | X7: 79 | Y7: 52 | Z7: 21 | AA7: 21 | AB7: 0 | AC7: 65 | AD7: 29 | AE7: 36 | AF7: 66 | AG7: 40 | AH7: 26 | AI7: 5 | AJ7: 3 | AL7: 2 | AM7: 4 | AN7: 3 | AO7: 1 | AP7: 9 | AQ7: 4 | AR7: 5 | AS7: 2 | AT7: 1 | AU7: 1 | AV7: 18 | AW7: 7 | AX7: 11 | AY7: 11 | AZ7: 5 | BA7: 6
A8: 갈현1동 | B8: 1051 | C8: 616 | D8: 435 | F8: 420 | G8: 230 | H8: 190 | I8: 129 | J8: 81 | K8: 48 | L8: 163 | M8: 90 | N8: 73 | O8: 5 | Q8: 3 | R8: 2 | S8: 77 | T8: 51 | V8: 26 | W8: 101 | X8: 64 | Y8: 37 | Z8: 20 | AA8: 17 | AB8: 3 | AC8: 65 | AD8: 36 | AE8: 29 | AF8: 45 | AG8: 23 | AH8: 22 | AI8: 1 | AJ8: 1 | AL8: 0 | AM8: 6 | AN8: 4 | AO8: 2 | AP8: 9 | AQ8: 8 | AR8: 1 | AS8: 0 | AT8: 0 | AU8: 0 | AV8: 8 | AW8: 7 | AX8: 1 | AY8: 2 | AZ8: 1 | BA8: 1
A9: 갈현2동 | B9: 1218 | C9: 703 | D9: 515 | F9: 518 | G9: 284 | H9: 234 | I9: 122 | J9: 81 | K9: 41 | L9: 186 | M9: 111 | N9: 75 | O9: 19 | Q9: 14 | R9: 5 | S9: 100 | T9: 60 | V9: 40 | W9: 105 | X9: 58 | Y9: 47 | Z9: 16 | AA9: 12 | AB9: 4 | AC9: 62 | AD9: 24 | AE9: 38 | AF9: 61 | AG9: 37 | AH9: 24 | AI9: 6 | AJ9: 2 | AL9: 4 | AM9: 6 | AN9: 6 | AO9: 0 | AP9: 9 | AQ9: 7 | AR9: 2 | AS9: 0 | AT9: 0 | AU9: 0 | AV9: 6 | AW9: 6 | AX9: 0 | AY9: 2 | AZ9: 1 | BA9: 1
A10: 구산동 | B10: 2186 | C10: 1502 | D10: 684 | F10: 656 | G10: 369 | H10: 287 | I10: 154 | J10: 98 | K10: 56 | L10: 230 | M10: 131 | N10: 99 | O10: 17 | Q10: 11 | R10: 6 | S10: 407 | T10: 319 | V10: 88 | W10: 224 | X10: 161 | Y10: 63 | Z10: 42 | AA10: 34 | AB10: 8 | AC10: 327 | AD10: 286 | AE10: 41 | AF10: 53 | AG10: 34 | AH10: 19 | AI10: 3 | AJ10: 2 | AL10: 1 | AM10: 29 | AN10: 21 | AO10: 8 | AP10: 13 | AQ10: 12 | AR10: 1 | AS10: 2 | AT10: 1 | AU10: 1 | AV10: 22 | AW10: 18 | AX10: 4 | AY10: 7 | AZ10: 5 | BA10: 2
A11: 대조동 | B11: 1244 | C11: 716 | D11: 528 | F11: 520 | G11: 288 | H11: 232 | I11: 148 | J11: 82 | K11: 66 | L11: 219 | M11: 130 | N11: 89 | O11: 8 | Q11: 6 | R11: 2 | S11: 69 | T11: 47 | V11: 22 | W11: 118 | X11: 70 | Y11: 48 | Z11: 12 | AA11: 9 | AB11: 3 | AC11: 63 | AD11: 31 | AE11: 32 | AF11: 58 | AG11: 35 | AH11: 23 | AI11: 6 | AJ11: 2 | AL11: 4 | AM11: 5 | AN11: 4 | AO11: 1 | AP11: 5 | AQ11: 4 | AR11: 1 | AS11: 0 | AT11: 0 | AU11: 0 | AV11: 10 | AW11: 7 | AX11: 3 | AY11: 3 | AZ11: 1 | BA11: 2
A12: 응암1동 | B12: 1328 | C12: 742 | D12: 586 | F12: 582 | G12: 322 | H12: 260 | I12: 142 | J12: 80 | K12: 62 | L12: 219 | M12: 107 | N12: 112 | O12: 8 | Q12: 6 | R12: 2 | S12: 68 | T12: 36 | V12: 32 | W12: 151 | X12: 96 | Y12: 55 | Z12: 19 | AA12: 18 | AB12: 1 | AC12: 51 | AD12: 27 | AE12: 24 | AF12: 52 | AG12: 26 | AH12: 26 | AI12: 9 | AJ12: 4 | AL12: 5 | AM12: 6 | AN12: 5 | AO12: 1 | AP12: 11 | AQ12: 6 | AR12: 5 | AS12: 0 | AT12: 0 | AU12: 0 | AV12: 8 | AW12: 8 | AX12: 0 | AY12: 2 | AZ12: 1 | BA12: 1
A13: 응암2동 | B13: 984 | C13: 560 | D13: 424 | F13: 401 | G13: 226 | H13: 175 | I13: 95 | J13: 47 | K13: 48 | L13: 154 | M13: 78 | N13: 76 | O13: 8 | Q13: 7 | R13: 1 | S13: 66 | T13: 42 | V13: 24 | W13: 100 | X13: 57 | Y13: 43 | Z13: 28 | AA13: 22 | AB13: 6 | AC13: 50 | AD13: 31 | AE13: 19 | AF13: 48 | AG13: 29 | AH13: 19 | AI13: 3 | AJ13: 2 | AL13: 1 | AM13: 6 | AN13: 5 | AO13: 1 | AP13: 8 | AQ13: 4 | AR13: 4 | AS13: 1 | AT13: 0 | AU13: 1 | AV13: 11 | AW13: 6 | AX13: 5 | AY13: 5 | AZ13: 4 | BA13: 1
A14: 응암3동 | B14: 1334 | C14: 764 | D14: 570 | F14: 568 | G14: 306 | H14: 262 | I14: 148 | J14: 85 | K14: 63 | L14: 212 | M14: 109 | N14: 103 | O14: 13 | Q14: 10 | R14: 3 | S14: 94 | T14: 63 | V14: 31 | W14: 135 | X14: 83 | Y14: 52 | Z14: 14 | AA14: 11 | AB14: 3 | AC14: 57 | AD14: 32 | AE14: 25 | AF14: 51 | AG14: 39 | AH14: 12 | AI14: 2 | AJ14: 1 | AL14: 1 | AM14: 9 | AN14: 7 | AO14: 2 | AP14: 12 | AQ14: 6 | AR14: 6 | AS14: 4 | AT14: 2 | AU14: 2 | AV14: 9 | AW14: 8 | AX14: 1 | AY14: 6 | AZ14: 2 | BA14: 4
A15: 역촌동 | B15: 2131 | C15: 1192 | D15: 939 | F15: 909 | G15: 484 | H15: 425 | I15: 202 | J15: 121 | K15: 81 | L15: 329 | M15: 182 | N15: 147 | O15: 22 | Q15: 14 | R15: 8 | S15: 185 | T15: 110 | V15: 75 | W15: 231 | X15: 138 | Y15: 93 | Z15: 34 | AA15: 28 | AB15: 6 | AC15: 89 | AD15: 40 | AE15: 49 | AF15: 76 | AG15: 42 | AH15: 34 | AI15: 1 | AJ15: 1 | AL15: 0 | AM15: 12 | AN15: 5 | AO15: 7 | AP15: 12 | AQ15: 8 | AR15: 4 | AS15: 1 | AT15: 1 | AU15: 0 | AV15: 20 | AW15: 13 | AX15: 7 | AY15: 8 | AZ15: 5 | BA15: 3
A16: 신사1동 | B16: 1226 | C16: 723 | D16: 503 | F16: 509 | G16: 288 | H16: 221 | I16: 154 | J16: 88 | K16: 66 | L16: 174 | M16: 107 | N16: 67 | O16: 10 | Q16: 6 | R16: 4 | S16: 126 | T16: 79 | V16: 47 | W16: 117 | X16: 63 | Y16: 54 | Z16: 21 | AA16: 17 | AB16: 4 | AC16: 45 | AD16: 29 | AE16: 16 | AF16: 37 | AG16: 27 | AH16: 10 | AI16: 1 | AJ16: 0 | AL16: 1 | AM16: 9 | AN16: 6 | AO16: 3 | AP16: 7 | AQ16: 6 | AR16: 1 | AS16: 3 | AT16: 1 | AU16: 2 | AV16: 10 | AW16: 5 | AX16: 5 | AY16: 3 | AZ16: 1 | BA16: 2
A17: 신사2동 | B17: 883 | C17: 509 | D17: 374 | F17: 379 | G17: 202 | H17: 177 | I17: 85 | J17: 56 | K17: 29 | L17: 126 | M17: 71 | N17: 55 | O17: 8 | Q17: 7 | R17: 1 | S17: 80 | T17: 47 | V17: 33 | W17: 79 | X17: 47 | Y17: 32 | Z17: 16 | AA17: 14 | AB17: 2 | AC17: 32 | AD17: 20 | AE17: 12 | AF17: 51 | AG17: 30 | AH17: 21 | AI17: 2 | AJ17: 0 | AL17: 2 | AM17: 7 | AN17: 6 | AO17: 1 | AP17: 5 | AQ17: 4 | AR17: 1 | AS17: 0 | AT17: 0 | AU17: 0 | AV17: 9 | AW17: 3 | AX17: 6 | AY17: 4 | AZ17: 2 | BA17: 2
A18: 증산동 | B18: 809 | C18: 461 | D18: 348 | F18: 350 | G18: 188 | H18: 162 | I18: 71 | J18: 47 | K18: 24 | L18: 139 | M18: 81 | N18: 58 | O18: 6 | Q18: 3 | R18: 3 | S18: 62 | T18: 41 | V18: 21 | W18: 70 | X18: 37 | Y18: 33 | Z18: 16 | AA18: 16 | AB18: 0 | AC18: 31 | AD18: 12 | AE18: 19 | AF18: 37 | AG18: 18 | AH18: 19 | AI18: 2 | AJ18: 1 | AL18: 1 | AM18: 2 | AN18: 2 | AO18: 0 | AP18: 8 | AQ18: 7 | AR18: 1 | AS18: 2 | AT18: 0 | AU18: 2 | AV18: 9 | AW18: 7 | AX18: 2 | AY18: 4 | AZ18: 1 | BA18: 3
A19: 수색동 | B19: 632 | C19: 347 | D19: 285 | F19: 260 | G19: 136 | H19: 124 | I19: 77 | J19: 42 | K19: 35 | L19: 90 | M19: 51 | N19: 39 | O19: 4 | Q19: 3 | R19: 1 | S19: 53 | T19: 34 | V19: 19 | W19: 74 | X19: 37 | Y19: 37 | Z19: 14 | AA19: 12 | AB19: 2 | AC19: 21 | AD19: 12 | AE19: 9 | AF19: 24 | AG19: 15 | AH19: 9 | AI19: 1 | AJ19: 0 | AL19: 1 | AM19: 2 | AN19: 0 | AO19: 2 | AP19: 7 | AQ19: 3 | AR19: 4 | AS19: 1 | AT19: 1 | AU19: 0 | AV19: 4 | AW19: 1 | AX19: 3 | AY19: 0 | AZ19: 0 | BA19: 0
A20: 진관동 | B20: 1954 | C20: 1118 | D20: 836 | F20: 815 | G20: 440 | H20: 375 | I20: 214 | J20: 122 | K20: 92 | L20: 279 | M20: 144 | N20: 135 | O20: 13 | Q20: 12 | R20: 1 | S20: 127 | T20: 80 | V20: 47 | W20: 240 | X20: 145 | Y20: 95 | Z20: 72 | AA20: 61 | AB20: 11 | AC20: 55 | AD20: 27 | AE20: 28 | AF20: 74 | AG20: 46 | AH20: 28 | AI20: 8 | AJ20: 4 | AL20: 4 | AM20: 7 | AN20: 4 | AO20: 3 | AP20: 20 | AQ20: 15 | AR20: 5 | AS20: 2 | AT20: 0 | AU20: 2 | AV20: 23 | AW20: 15 | AX20: 8 | AY20: 5 | AZ20: 3 | BA20: 2

Sheet 정도별
B2: 은평구 동별 장애인현황(정도별)
B3: *2022. 7월말 기준 | K3: (단위 : 명)
B4: 자치구 | C4: 동 | D4: 합계 | G4: 심한 장애 | J4: 심하지 않은 장애
D5: 계 | E5: 남자 | F5: 여자 | G5: 계 | H5: 남자 | I5: 여자 | J5: 계 | K5: 남자 | L5: 여자
B6: 은평구 | C6: 합 계 | D6: =SUM(D7:D22) -> 21747 | E6: =SUM(E7:E22) -> 12678 | F6: 9069 | G6: =SUM(G7:G22) -> 8258 | H6: =SUM(H7:H22) -> 5136 | I6: 3122 | J6: 13489 | K6: 7542 | L6: 5947
C7: 녹번동 | D7: =SUM(E7:F7) -> 1664 | E7: =SUM(H7,K7) -> 952 | F7: =SUM(I7,L7) -> 712 | G7: =SUM(H7,I7) -> 570 | H7: 334 | I7: 236 | J7: =SUM(K7,L7) -> 1094 | K7: 618 | L7: 476
C8: 불광1동 | D8: =SUM(E8:F8) -> 1689 | E8: =SUM(H8,K8) -> 947 | F8: =SUM(I8,L8) -> 742 | G8: =SUM(H8,I8) -> 602 | H8: 345 | I8: 257 | J8: =SUM(K8,L8) -> 1087 | K8: 602 | L8: 485
C9: 불광2동 | D9: 1414 | E9: 826 | F9: 588 | G9: 479 | H9: 286 | I9: 193 | J9: 935 | K9: 540 | L9: 395
C10: 갈현1동 | D10: 1051 | E10: 616 | F10: 435 | G10: 382 | H10: 225 | I10: 157 | J10: 669 | K10: 391 | L10: 278
C11: 갈현2동 | D11: 1218 | E11: 703 | F11: 515 | G11: 461 | H11: 265 | I11: 196 | J11: 757 | K11: 438 | L11: 319
C12: 구산동 | D12: 2186 | E12: 1502 | F12: 684 | G12: 1237 | H12: 954 | I12: 283 | J12: 949 | K12: 548 | L12: 401
C13: 대조동 | D13: 1244 | E13: 716 | F13: 528 | G13: 428 | H13: 261 | I13: 167 | J13: 816 | K13: 455 | L13: 361
C14: 응암1동 | D14: 1328 | E14: 742 | F14: 586 | G14: 463 | H14: 257 | I14: 206 | J14: 865 | K14: 485 | L14: 380
C15: 응암2동 | D15: 984 | E15: 560 | F15: 424 | G15: 367 | H15: 231 | I15: 136 | J15: 617 | K15: 329 | L15: 288
C16: 응암3동 | D16: 1334 | E16: 764 | F16: 570 | G16: 424 | H16: 266 | I16: 158 | J16: 910 | K16: 498 | L16: 412
C17: 역촌동 | D17: 2131 | E17: 1192 | F17: 939 | G17: 778 | H17: 451 | I17: 327 | J17: 1353 | K17: 741 | L17: 612
C18: 신사1동 | D18: 1226 | E18: 723 | F18: 503 | G18: 447 | H18: 281 | I18: 166 | J18: 779 | K18: 442 | L18: 337
C19: 신사2동 | D19: 883 | E19: 509 | F19: 374 | G19: 319 | H19: 194 | I19: 125 | J19: 564 | K19: 315 | L19: 249
C20: 증산동 | D20: 809 | E20: 461 | F20: 348 | G20: 296 | H20: 183 | I20: 113 | J20: 513 | K20: 278 | L20: 235
C21: 수색동 | D21: 632 | E21: 347 | F21: 285 | G21: 235 | H21: 137 | I21: 98 | J21: 397 | K21: 210 | L21: 187
C22: 진관동 | D22: 1954 | E22: 1118 | F22: 836 | G22: 770 | H22: 466 | I22: 304 | J22: 1184 | K22: 652 | L22: 532

Sheet 연령별
A1: 은평구 장애인 연령구간별(5세 간격), 장애정도별 등록 현황
A2: *2022. 7월말 기준
J3: (단위: 명)
A4: 구분 | B4: 나이 | C4: 합계 | F4: 심한 장애 | I4: 심하지 않은 장애
C5: 합계 | D5: 남성 | E5: 여성 | F5: 소계 | G5: 남성 | H5: 여성 | I5: 소계 | J5: 남성 | K5: 여성
A6: 합계 | B6: 합계 | C6: =SUM(C7:C28) -> 21747 | D6: =SUM(D7:D28) -> 12678 | E6: 9069 | F6: 8258 | G6: 5136 | H6: 3122 | I6: 13489 | J6: 7542 | K6: 5947
B7: 0~4 | C7: 59 | D7: 30 | E7: 29 | F7: 45 | G7: 23 | H7: 22 | I7: 14 | J7: 7 | K7: 7
B8: 5~9 | C8: 245 | D8: 168 | E8: 77 | F8: 213 | G8: 147 | H8: 66 | I8: 32 | J8: 21 | K8: 11
B9: 10~14 | C9: 265 | D9: 171 | E9: 94 | F9: 236 | G9: 152 | H9: 84 | I9: 29 | J9: 19 | K9: 10
B10: 15~19 | C10: 285 | D10: 181 | E10: 104 | F10: 256 | G10: 165 | H10: 91 | I10: 29 | J10: 16 | K10: 13
B11: 20~24 | C11: 409 | D11: 260 | E11: 149 | F11: 332 | G11: 217 | H11: 115 | I11: 77 | J11: 43 | K11: 34
B12: 25~29 | C12: 499 | D12: 309 | E12: 190 | F12: 378 | G12: 245 | H12: 133 | I12: 121 | J12: 64 | K12: 57
B13: 30~34 | C13: 517 | D13: 346 | E13: 171 | F13: 359 | G13: 239 | H13: 120 | I13: 158 | J13: 107 | K13: 51
B14: 35~39 | C14: 542 | D14: 359 | E14: 183 | F14: 310 | G14: 195 | H14: 115 | I14: 232 | J14: 164 | K14: 68
B15: 40~44 | C15: 738 | D15: 505 | E15: 233 | F15: 378 | G15: 247 | H15: 131 | I15: 360 | J15: 258 | K15: 102
B16: 45~49 | C16: 1063 | D16: 755 | E16: 308 | F16: 537 | G16: 363 | H16: 174 | I16: 526 | J16: 392 | K16: 134
B17: 50~54 | C17: 1487 | D17: 1021 | E17: 466 | F17: 691 | G17: 448 | H17: 243 | I17: 796 | J17: 573 | K17: 223
B18: 55~59 | C18: 1765 | D18: 1194 | E18: 571 | F18: 717 | G18: 471 | H18: 246 | I18: 1048 | J18: 723 | K18: 325
B19: 60~64 | C19: 2396 | D19: 1567 | E19: 829 | F19: 849 | G19: 560 | H19: 289 | I19: 1547 | J19: 1007 | K19: 540
B20: 65~69 | C20: 2421 | D20: 1432 | E20: 989 | F20: 739 | G20: 476 | H20: 263 | I20: 1682 | J20: 956 | K20: 726
B21: 70~74 | C21: 2490 | D21: 1375 | E21: 1115 | F21: 687 | G21: 430 | H21: 257 | I21: 1803 | J21: 945 | K21: 858
B22: 75~79 | C22: 2572 | D22: 1304 | E22: 1268 | F22: 621 | G22: 355 | H22: 266 | I22: 1951 | J22: 949 | K22: 1002
B23: 80~84 | C23: 2275 | D23: 1065 | E23: 1210 | F23: 509 | G23: 247 | H23: 262 | I23: 1766 | J23: 818 | K23: 948
B24: 85~89 | C24: 1274 | D24: 491 | E24: 783 | F24: 297 | G24: 123 | H24: 174 | I24: 977 | J24: 368 | K24: 609
B25: 90~94 | C25: 367 | D25: 121 | E25: 246 | F25: 86 | G25: 27 | H25: 59 | I25: 281 | J25: 94 | K25: 187
B26: 95~99 | C26: 69 | D26: 21 | E26: 48 | F26: 15 | G26: 5 | H26: 10 | I26: 54 | J26: 16 | K26: 38
B27: 100~104 | C27: 8 | D27: 2 | E27: 6 | F27: 3 | G27: 1 | H27: 2 | I27: 5 | J27: 1 | K27: 4
B28: 110~114 | C28: 1 | D28: 1 | E28: 0 | F28: 0 | G28: 0 | H28: 0 | I28: 1 | J28: 1 | K28: 0

Sheet 연령별,유형별
B1: 은평구 등록장애인 연령별, 유형별 현황
C2: * 2022. 7월말 기준
B3: 구분 | C3: 나이 | D3: 합계 | H3: 지체 | K3: 시각 | N3: 청각 | Q3: 언어 | U3: 지적 | Y3: 뇌병변 | AB3: 자폐 | AE3: 정신 | AH3: 신장 | AK3: 심장 | AO3: 호흡기 | AR3: 간 | AU3: 안면 | AX3: 장루.요루 | BA3: 뇌전증
D4: 합계 | E4: 남성 | F4: 여성 | H4: 소계 | I4: 남성 | J4: 여성 | K4: 소계 | L4: 남성 | M4: 여성 | N4: 소계 | O4: 남성 | P4: 여성 | Q4: 소계 | S4: 남성 | T4: 여성 | U4: 소계 | V4: 남성 | X4: 여성 | Y4: 소계 | Z4: 남성 | AA4: 여성 | AB4: 소계 | AC4: 남성 | AD4: 여성 | AE4: 소계 | AF4: 남성 | AG4: 여성 | AH4: 소계 | AI4: 남성 | AJ4: 여성 | AK4: 소계 | AL4: 남성 | AN4: 여성 | AO4: 소계 | AP4: 남성 | AQ4: 여성 | AR4: 소계 | AS4: 남성 | AT4: 여성 | AU4: 소계 | AV4: 남성 | AW4: 여성 | AX4: 소계 | AY4: 남성 | AZ4: 여성 | BA4: 소계 | BB4: 남성 | BC4: 여성
B5: 합계 | D5: 21747 | E5: 12678 | F5: 9069 | H5: 8847 | I5: 4838 | J5: 4009 | K5: 2275 | L5: 1369 | M5: 906 | N5: 3337 | O5: 1845 | P5: 1492 | Q5: 187 | S5: 138 | T5: 49 | U5: 1833 | V5: 1203 | X5: 630 | Y5: 2209 | Z5: 1313 | AA5: 896 | AB5: 389 | AC5: 327 | AD5: 62 | AE5: 1152 | AF5: 707 | AG5: 445 | AH5: 891 | AI5: 540 | AJ5: 351 | AK5: 55 | AL5: 25 | AN5: 30 | AO5: 122 | AP5: 88 | AQ5: 34 | AR5: 168 | AS5: 113 | AT5: 55 | AU5: 22 | AV5: 11 | AW5: 11 | AX5: 193 | AY5: 126 | AZ5: 67 | BA5: 67 | BB5: 35 | BC5: 32
B6: 합계 | C6: 2 | D6: 11 | E6: 5 | F6: 6 | H6: 0 | I6: 0 | J6: 0 | K6: 0 | L6: 0 | M6: 0 | N6: 4 | O6: 2 | P6: 2 | Q6: 0 | S6: 0 | T6: 0 | U6: 1 | V6: 1 | X6: 0 | Y6: 5 | Z6: 2 | AA6: 3 | AB6: 0 | AC6: 0 | AD6: 0 | AE6: 0 | AF6: 0 | AG6: 0 | AH6: 0 | AI6: 0 | AJ6: 0 | AK6: 0 | AL6: 0 | AN6: 0 | AO6: 0 | AP6: 0 | AQ6: 0 | AR6: 0 | AS6: 0 | AT6: 0 | AU6: 0 | AV6: 0 | AW6: 0 | AX6: 1 | AY6: 0 | AZ6: 1 | BA6: 0 | BB6: 0 | BC6: 0
C7: 3 | D7: 21 | E7: 11 | F7: 10 | H7: 1 | I7: 0 | J7: 1 | K7: 1 | L7: 1 | M7: 0 | N7: 3 | O7: 1 | P7: 2 | Q7: 0 | S7: 0 | T7: 0 | U7: 1 | V7: 1 | X7: 0 | Y7: 13 | Z7: 6 | AA7: 7 | AB7: 2 | AC7: 2 | AD7: 0 | AE7: 0 | AF7: 0 | AG7: 0 | AH7: 0 | AI7: 0 | AJ7: 0 | AK7: 0 | AL7: 0 | AN7: 0 | AO7: 0 | AP7: 0 | AQ7: 0 | AR7: 0 | AS7: 0 | AT7: 0 | AU7: 0 | AV7: 0 | AW7: 0 | AX7: 0 | AY7: 0 | AZ7: 0 | BA7: 0 | BB7: 0 | BC7: 0
C8: 4 | D8: 27 | E8: 14 | F8: 13 | H8: 1 | I8: 0 | J8: 1 | K8: 0 | L8: 0 | M8: 0 | N8: 0 | O8: 0 | P8: 0 | Q8: 3 | S8: 2 | T8: 1 | U8: 4 | V8: 2 | X8: 2 | Y8: 12 | Z8: 4 | AA8: 8 | AB8: 7 | AC8: 6 | AD8: 1 | AE8: 0 | AF8: 0 | AG8: 0 | AH8: 0 | AI8: 0 | AJ8: 0 | AK8: 0 | AL8: 0 | AN8: 0 | AO8: 0 | AP8: 0 | AQ8: 0 | AR8: 0 | AS8: 0 | AT8: 0 | AU8: 0 | AV8: 0 | AW8: 0 | AX8: 0 | AY8: 0 | AZ8: 0 | BA8: 0 | BB8: 0 | BC8: 0
C9: 5 | D9: 38 | E9: 30 | F9: 8 | H9: 1 | I9: 1 | J9: 0 | K9: 0 | L9: 0 | M9: 0 | N9: 1 | O9: 0 | P9: 1 | Q9: 8 | S9: 7 | T9: 1 | U9: 11 | V9: 9 | X9: 2 | Y9: 5 | Z9: 4 | AA9: 1 | AB9: 10 | AC9: 7 | AD9: 3 | AE9: 0 | AF9: 0 | AG9: 0 | AH9: 0 | AI9: 0 | AJ9: 0 | AK9: 0 | AL9: 0 | AN9: 0 | AO9: 0 | AP9: 0 | AQ9: 0 | AR9: 0 | AS9: 0 | AT9: 0 | AU9: 0 | AV9: 0 | AW9: 0 | AX9: 1 | AY9: 1 | AZ9: 0 | BA9: 1 | BB9: 1 | BC9: 0
C10: 6 | D10: 52 | E10: 40 | F10: 12 | H10: 0 | I10: 0 | J10: 0 | K10: 1 | L10: 0 | M10: 1 | N10: 2 | O10: 1 | P10: 1 | Q10: 9 | S10: 8 | T10: 1 | U10: 11 | V10: 9 | X10: 2 | Y10: 2 | Z10: 0 | AA10: 2 | AB10: 26 | AC10: 22 | AD10: 4 | AE10: 0 | AF10: 0 | AG10: 0 | AH10: 0 | AI10: 0 | AJ10: 0 | AK10: 0 | AL10: 0 | AN10: 0 | AO10: 0 | AP10: 0 | AQ10: 0 | AR10: 1 | AS10: 0 | AT10: 1 | AU10: 0 | AV10: 0 | AW10: 0 | AX10: 0 | AY10: 0 | AZ10: 0 | BA10: 0 | BB10: 0 | BC10: 0
C11: 7 | D11: 49 | E11: 35 | F11: 14 | H11: 0 | I11: 0 | J11: 0 | K11: 1 | L11: 1 | M11: 0 | N11: 5 | O11: 1 | P11: 4 | Q11: 1 | S11: 0 | T11: 1 | U11: 14 | V11: 10 | X11: 4 | Y11: 6 | Z11: 4 | AA11: 2 | AB11: 21 | AC11: 18 | AD11: 3 | AE11: 0 | AF11: 0 | AG11: 0 | AH11: 0 | AI11: 0 | AJ11: 0 | AK11: 0 | AL11: 0 | AN11: 0 | AO11: 0 | AP11: 0 | AQ11: 0 | AR11: 1 | AS11: 1 | AT11: 0 | AU11: 0 | AV11: 0 | AW11: 0 | AX11: 0 | AY11: 0 | AZ11: 0 | BA11: 0 | BB11: 0 | BC11: 0
C12: 8 | D12: 56 | E12: 30 | F12: 26 | H12: 0 | I12: 0 | J12: 0 | K12: 1 | L12: 0 | M12: 1 | N12: 3 | O12: 1 | P12: 2 | Q12: 1 | S12: 1 | T12: 0 | U12: 23 | V12: 11 | X12: 12 | Y12: 10 | Z12: 5 | AA12: 5 | AB12: 17 | AC12: 11 | AD12: 6 | AE12: 0 | AF12: 0 | AG12: 0 | AH12: 0 | AI12: 0 | AJ12: 0 | AK12: 0 | AL12: 0 | AN12: 0 | AO12: 0 | AP12: 0 | AQ12: 0 | AR12: 1 | AS12: 1 | AT12: 0 | AU12: 0 | AV12: 0 | AW12: 0 | AX12: 0 | AY12: 0 | AZ12: 0 | BA12: 0 | BB12: 0 | BC12: 0
C13: 9 | D13: 50 | E13: 33 | F13: 17 | H13: 0 | I13: 0 | J13: 0 | K13: 0 | L13: 0 | M13: 0 | N13: 1 | O13: 0 | P13: 1 | Q13: 1 | S13: 1 | T13: 0 | U13: 23 | V13: 15 | X13: 8 | Y13: 8 | Z13: 4 | AA13: 4 | AB13: 16 | AC13: 12 | AD13: 4 | AE13: 0 | AF13: 0 | AG13: 0 | AH13: 0 | AI13: 0 | AJ13: 0 | AK13: 1 | AL13: 1 | AN13: 0 | AO13: 0 | AP13: 0 | AQ13: 0 | AR13: 0 | AS13: 0 | AT13: 0 | AU13: 0 | AV13: 0 | AW13: 0 | AX13: 0 | AY13: 0 | AZ13: 0 | BA13: 0 | BB13: 0 | BC13: 0
C14: 10 | D14: 58 | E14: 33 | F14: 25 | H14: 0 | I14: 0 | J14: 0 | K14: 2 | L14: 2 | M14: 0 | N14: 1 | O14: 0 | P14: 1 | Q14: 0 | S14: 0 | T14: 0 | U14: 23 | V14: 9 | X14: 14 | Y14: 12 | Z14: 5 | AA14: 7 | AB14: 20 | AC14: 17 | AD14: 3 | AE14: 0 | AF14: 0 | AG14: 0 | AH14: 0 | AI14: 0 | AJ14: 0 | AK14: 0 | AL14: 0 | AN14: 0 | AO14: 0 | AP14: 0 | AQ14: 0 | AR14: 0 | AS14: 0 | AT14: 0 | AU14: 0 | AV14: 0 | AW14: 0 | AX14: 0 | AY14: 0 | AZ14: 0 | BA14: 0 | BB14: 0 | BC14: 0
C15: 11 | D15: 57 | E15: 39 | F15: 18 | H15: 3 | I15: 2 | J15: 1 | K15: 3 | L15: 1 | M15: 2 | N15: 3 | O15: 1 | P15: 2 | Q15: 0 | S15: 0 | T15: 0 | U15: 25 | V15: 16 | X15: 9 | Y15: 4 | Z15: 3 | AA15: 1 | AB15: 19 | AC15: 16 | AD15: 3 | AE15: 0 | AF15: 0 | AG15: 0 | AH15: 0 | AI15: 0 | AJ15: 0 | AK15: 0 | AL15: 0 | AN15: 0 | AO15: 0 | AP15: 0 | AQ15: 0 | AR15: 0 | AS15: 0 | AT15: 0 | AU15: 0 | AV15: 0 | AW15: 0 | AX15: 0 | AY15: 0 | AZ15: 0 | BA15: 0 | BB15: 0 | BC15: 0
C16: 12 | D16: 55 | E16: 39 | F16: 16 | H16: 1 | I16: 1 | J16: 0 | K16: 1 | L16: 0 | M16: 1 | N16: 1 | O16: 0 | P16: 1 | Q16: 3 | S16: 2 | T16: 1 | U16: 18 | V16: 10 | X16: 8 | Y16: 8 | Z16: 6 | AA16: 2 | AB16: 23 | AC16: 20 | AD16: 3 | AE16: 0 | AF16: 0 | AG16: 0 | AH16: 0 | AI16: 0 | AJ16: 0 | AK16: 0 | AL16: 0 | AN16: 0 | AO16: 0 | AP16: 0 | AQ16: 0 | AR16: 0 | AS16: 0 | AT16: 0 | AU16: 0 | AV16: 0 | AW16: 0 | AX16: 0 | AY16: 0 | AZ16: 0 | BA16: 0 | BB16: 0 | BC16: 0
C17: 13 | D17: 50 | E17: 30 | F17: 20 | H17: 1 | I17: 1 | J17: 0 | K17: 1 | L17: 0 | M17: 1 | N17: 1 | O17: 1 | P17: 0 | Q17: 0 | S17: 0 | T17: 0 | U17: 24 | V17: 12 | X17: 12 | Y17: 6 | Z17: 3 | AA17: 3 | AB17: 15 | AC17: 11 | AD17: 4 | AE17: 0 | AF17: 0 | AG17: 0 | AH17: 0 | AI17: 0 | AJ17: 0 | AK17: 1 | AL17: 1 | AN17: 0 | AO17: 0 | AP17: 0 | AQ17: 0 | AR17: 1 | AS17: 1 | AT17: 0 | AU17: 0 | AV17: 0 | AW17: 0 | AX17: 0 | AY17: 0 | AZ17: 0 | BA17: 0 | BB17: 0 | BC17: 0
C18: 14 | D18: 45 | E18: 30 | F18: 15 | H18: 0 | I18: 0 | J18: 0 | K18: 2 | L18: 0 | M18: 2 | N18: 1 | O18: 0 | P18: 1 | Q18: 1 | S18: 1 | T18: 0 | U18: 24 | V18: 18 | X18: 6 | Y18: 9 | Z18: 4 | AA18: 5 | AB18: 8 | AC18: 7 | AD18: 1 | AE18: 0 | AF18: 0 | AG18: 0 | AH18: 0 | AI18: 0 | AJ18: 0 | AK18: 0 | AL18: 0 | AN18: 0 | AO18: 0 | AP18: 0 | AQ18: 0 | AR18: 0 | AS18: 0 | AT18: 0 | AU18: 0 | AV18: 0 | AW18: 0 | AX18: 0 | AY18: 0 | AZ18: 0 | BA18: 0 | BB18: 0 | BC18: 0
C19: 15 | D19: 51 | E19: 35 | F19: 16 | H19: 2 | I19: 0 | J19: 2 | K19: 0 | L19: 0 | M19: 0 | N19: 2 | O19: 2 | P19: 0 | Q19: 0 | S19: 0 | T19: 0 | U19: 32 | V19: 21 | X19: 11 | Y19: 6 | Z19: 4 | AA19: 2 | AB19: 8 | AC19: 7 | AD19: 1 | AE19: 0 | AF19: 0 | AG19: 0 | AH19: 0 | AI19: 0 | AJ19: 0 | AK19: 0 | AL19: 0 | AN19: 0 | AO19: 0 | AP19: 0 | AQ19: 0 | AR19: 1 | AS19: 1 | AT19: 0 | AU19: 0 | AV19: 0 | AW19: 0 | AX19: 0 | AY19: 0 | AZ19: 0 | BA19: 0 | BB19: 0 | BC19: 0
C20: 16 | D20: 43 | E20: 27 | F20: 16 | H20: 3 | I20: 2 | J20: 1 | K20: 1 | L20: 1 | M20: 0 | N20: 1 | O20: 0 | P20: 1 | Q20: 0 | S20: 0 | T20: 0 | U20: 29 | V20: 20 | X20: 9 | Y20: 5 | Z20: 1 | AA20: 4 | AB20: 4 | AC20: 3 | AD20: 1 | AE20: 0 | AF20: 0 | AG20: 0 | AH20: 0 | AI20: 0 | AJ20: 0 | AK20: 0 | AL20: 0 | AN20: 0 | AO20: 0 | AP20: 0 | AQ20: 0 | AR20: 0 | AS20: 0 | AT20: 0 | AU20: 0 | AV20: 0 | AW20: 0 | AX20: 0 | AY20: 0 | AZ20: 0 | BA20: 0 | BB20: 0 | BC20: 0
C21: 17 | D21: 53 | E21: 34 | F21: 19 | H21: 6 | I21: 2 | J21: 4 | K21: 3 | L21: 1 | M21: 2 | N21: 1 | O21: 1 | P21: 0 | Q21: 0 | S21: 0 | T21: 0 | U21: 32 | V21: 21 | X21: 11 | Y21: 3 | Z21: 2 | AA21: 1 | AB21: 8 | AC21: 7 | AD21: 1 | AE21: 0 | AF21: 0 | AG21: 0 | AH21: 0 | AI21: 0 | AJ21: 0 | AK21: 0 | AL21: 0 | AN21: 0 | AO21: 0 | AP21: 0 | AQ21: 0 | AR21: 0 | AS21: 0 | AT21: 0 | AU21: 0 | AV21: 0 | AW21: 0 | AX21: 0 | AY21: 0 | AZ21: 0 | BA21: 0 | BB21: 0 | BC21: 0
C22: 18 | D22: 72 | E22: 46 | F22: 26 | H22: 2 | I22: 2 | J22: 0 | K22: 0 | L22: 0 | M22: 0 | N22: 3 | O22: 1 | P22: 2 | Q22: 1 | S22: 1 | T22: 0 | U22: 44 | V22: 24 | X22: 20 | Y22: 9 | Z22: 7 | AA22: 2 | AB22: 12 | AC22: 11 | AD22: 1 | AE22: 0 | AF22: 0 | AG22: 0 | AH22: 1 | AI22: 0 | AJ22: 1 | AK22: 0 | AL22: 0 | AN22: 0 | AO22: 0 | AP22: 0 | AQ22: 0 | AR22: 0 | AS22: 0 | AT22: 0 | AU22: 0 | AV22: 0 | AW22: 0 | AX22: 0 | AY22: 0 | AZ22: 0 | BA22: 0 | BB22: 0 | BC22: 0
C23: 19 | D23: 66 | E23: 39 | F23: 27 | H23: 3 | I23: 2 | J23: 1 | K23: 1 | L23: 1 | M23: 0 | N23: 2 | O23: 1 | P23: 1 | Q23: 1 | S23: 1 | T23: 0 | U23: 43 | V23: 23 | X23: 20 | Y23: 5 | Z23: 2 | AA23: 3 | AB23: 6 | AC23: 5 | AD23: 1 | AE23: 0 | AF23: 0 | AG23: 0 | AH23: 0 | AI23: 0 | AJ23: 0 | AK23: 2 | AL23: 2 | AN23: 0 | AO23: 0 | AP23: 0 | AQ23: 0 | AR23: 2 | AS23: 1 | AT23: 1 | AU23: 0 | AV23: 0 | AW23: 0 | AX23: 1 | AY23: 1 | AZ23: 0 | BA23: 0 | BB23: 0 | BC23: 0
C24: 20 | D24: 65 | E24: 40 | F24: 25 | H24: 3 | I24: 1 | J24: 2 | K24: 3 | L24: 2 | M24: 1 | N24: 6 | O24: 2 | P24: 4 | Q24: 0 | S24: 0 | T24: 0 | U24: 39 | V24: 28 | X24: 11 | Y24: 5 | Z24: 1 | AA24: 4 | AB24: 5 | AC24: 4 | AD24: 1 | AE24: 1 | AF24: 1 | AG24: 0 | AH24: 0 | AI24: 0 | AJ24: 0 | AK24: 1 | AL24: 1 | AN24: 0 | AO24: 0 | AP24: 0 | AQ24: 0 | AR24: 2 | AS24: 0 | AT24: 2 | AU24: 0 | AV24: 0 | AW24: 0 | AX24: 0 | AY24: 0 | AZ24: 0 | BA24: 0 | BB24: 0 | BC24: 0
C25: 21 | D25: 79 | E25: 51 | F25: 28 | H25: 7 | I25: 3 | J25: 4 | K25: 6 | L25: 3 | M25: 3 | N25: 3 | O25: 3 | P25: 0 | Q25: 0 | S25: 0 | T25: 0 | U25: 43 | V25: 26 | X25: 17 | Y25: 3 | Z25: 3 | AA25: 0 | AB25: 15 | AC25: 13 | AD25: 2 | AE25: 0 | AF25: 0 | AG25: 0 | AH25: 1 | AI25: 0 | AJ25: 1 | AK25: 0 | AL25: 0 | AN25: 0 | AO25: 0 | AP25: 0 | AQ25: 0 | AR25: 1 | AS25: 0 | AT25: 1 | AU25: 0 | AV25: 0 | AW25: 0 | AX25: 0 | AY25: 0 | AZ25: 0 | BA25: 0 | BB25: 0 | BC25: 0
C26: 22 | D26: 88 | E26: 54 | F26: 34 | H26: 8 | I26: 4 | J26: 4 | K26: 3 | L26: 1 | M26: 2 | N26: 7 | O26: 2 | P26: 5 | Q26: 0 | S26: 0 | T26: 0 | U26: 43 | V26: 28 | X26: 15 | Y26: 5 | Z26: 4 | AA26: 1 | AB26: 15 | AC26: 12 | AD26: 3 | AE26: 2 | AF26: 1 | AG26: 1 | AH26: 0 | AI26: 0 | AJ26: 0 | AK26: 3 | AL26: 1 | AN26: 2 | AO26: 0 | AP26: 0 | AQ26: 0 | AR26: 1 | AS26: 1 | AT26: 0 | AU26: 0 | AV26: 0 | AW26: 0 | AX26: 0 | AY26: 0 | AZ26: 0 | BA26: 1 | BB26: 0 | BC26: 1
C27: 23 | D27: 87 | E27: 60 | F27: 27 | H27: 6 | I27: 1 | J27: 5 | K27: 6 | L27: 3 | M27: 3 | N27: 5 | O27: 4 | P27: 1 | Q27: 0 | S27: 0 | T27: 0 | U27: 39 | V27: 26 | X27: 13 | Y27: 9 | Z27: 7 | AA27: 2 | AB27: 17 | AC27: 16 | AD27: 1 | AE27: 2 | AF27: 1 | AG27: 1 | AH27: 0 | AI27: 0 | AJ27: 0 | AK27: 0 | AL27: 0 | AN27: 0 | AO27: 0 | AP27: 0 | AQ27: 0 | AR27: 2 | AS27: 1 | AT27: 1 | AU27: 0 | AV27: 0 | AW27: 0 | AX27: 0 | AY27: 0 | AZ27: 0 | BA27: 1 | BB27: 1 | BC27: 0
C28: 24 | D28: 90 | E28: 55 | F28: 35 | H28: 10 | I28: 7 | J28: 3 | K28: 8 | L28: 5 | M28: 3 | N28: 5 | O28: 1 | P28: 4 | Q28: 1 | S28: 1 | T28: 0 | U28: 48 | V28: 29 | X28: 19 | Y28: 4 | Z28: 2 | AA28: 2 | AB28: 10 | AC28: 8 | AD28: 2 | AE28: 2 | AF28: 0 | AG28: 2 | AH28: 1 | AI28: 1 | AJ28: 0 | AK28: 0 | AL28: 0 | AN28: 0 | AO28: 0 | AP28: 0 | AQ28: 0 | AR28: 0 | AS28: 0 | AT28: 0 | AU28: 0 | AV28: 0 | AW28: 0 | AX28: 0 | AY28: 0 | AZ28: 0 | BA28: 1 | BB28: 1 | BC28: 0
C29: 25 | D29: 89 | E29: 50 | F29: 39 | H29: 13 | I29: 5 | J29: 8 | K29: 8 | L29: 4 | M29: 4 | N29: 6 | O29: 4 | P29: 2 | Q29: 2 | S29: 2 | T29: 0 | U29: 41 | V29: 23 | X29: 18 | Y29: 5 | Z29: 1 | AA29: 4 | AB29: 10 | AC29: 9 | AD29: 1 | AE29: 4 | AF29: 2 | AG29: 2 | AH29: 0 | AI29: 0 | AJ29: 0 | AK29: 0 | AL29: 0 | AN29: 0 | AO29: 0 | AP29: 0 | AQ29: 0 | AR29: 0 | AS29: 0 | AT29: 0 | AU29: 0 | AV29: 0 | AW29: 0 | AX29: 0 | AY29: 0 | AZ29: 0 | BA29: 0 | BB29: 0 | BC29: 0
C30: 26 | D30: 105 | E30: 67 | F30: 38 | H30: 15 | I30: 7 | J30: 8 | K30: 9 | L30: 7 | M30: 2 | N30: 7 | O30: 3 | P30: 4 | Q30: 0 | S30: 0 | T30: 0 | U30: 49 | V30: 32 | X30: 17 | Y30: 8 | Z30: 6 | AA30: 2 | AB30: 12 | AC30: 9 | AD30: 3 | AE30: 3 | AF30: 2 | AG30: 1 | AH30: 1 | AI30: 1 | AJ30: 0 | AK30: 0 | AL30: 0 | AN30: 0 | AO30: 0 | AP30: 0 | AQ30: 0 | AR30: 0 | AS30: 0 | AT30: 0 | AU30: 0 | AV30: 0 | AW30: 0 | AX30: 0 | AY30: 0 | AZ30: 0 | BA30: 1 | BB30: 0 | BC30: 1
C31: 27 | D31: 92 | E31: 63 | F31: 29 | H31: 15 | I31: 9 | J31: 6 | K31: 9 | L31: 9 | M31: 0 | N31: 4 | O31: 2 | P31: 2 | Q31: 0 | S31: 0 | T31: 0 | U31: 43 | V31: 28 | X31: 15 | Y31: 5 | Z31: 3 | AA31: 2 | AB31: 11 | AC31: 10 | AD31: 1 | AE31: 1 | AF31: 1 | AG31: 0 | AH31: 2 | AI31: 1 | AJ31: 1 | AK31: 1 | AL31: 0 | AN31: 1 | AO31: 0 | AP31: 0 | AQ31: 0 | AR31: 1 | AS31: 0 | AT31: 1 | AU31: 0 | AV31: 0 | AW31: 0 | AX31: 0 | AY31: 0 | AZ31: 0 | BA31: 0 | BB31: 0 | BC31: 0
C32: 28 | D32: 114 | E32: 72 | F32: 42 | H32: 16 | I32: 8 | J32: 8 | K32: 13 | L32: 8 | M32: 5 | N32: 8 | O32: 2 | P32: 6 | Q32: 0 | S32: 0 | T32: 0 | U32: 47 | V32: 30 | X32: 17 | Y32: 10 | Z32: 6 | AA32: 4 | AB32: 12 | AC32: 12 | AD32: 0 | AE32: 2 | AF32: 2 | AG32: 0 | AH32: 3 | AI32: 2 | AJ32: 1 | AK32: 1 | AL32: 0 | AN32: 1 | AO32: 0 | AP32: 0 | AQ32: 0 | AR32: 1 | AS32: 1 | AT32: 0 | AU32: 0 | AV32: 0 | AW32: 0 | AX32: 0 | AY32: 0 | AZ32: 0 | BA32: 1 | BB32: 1 | BC32: 0
C33: 29 | D33: 99 | E33: 57 | F33: 42 | H33: 14 | I33: 7 | J33: 7 | K33: 8 | L33: 5 | M33: 3 | N33: 4 | O33: 1 | P33: 3 | Q33: 2 | S33: 0 | T33: 2 | U33: 53 | V33: 34 | X33: 19 | Y33: 5 | Z33: 4 | AA33: 1 | AB33: 6 | AC33: 4 | AD33: 2 | AE33: 4 | AF33: 1 | AG33: 3 | AH33: 1 | AI33: 1 | AJ33: 0 | AK33: 1 | AL33: 0 | AN33: 1 | AO33: 0 | AP33: 0 | AQ33: 0 | AR33: 0 | AS33: 0 | AT33: 0 | AU33: 0 | AV33: 0 | AW33: 0 | AX33: 1 | AY33: 0 | AZ33: 1 | BA33: 0 | BB33: 0 | BC33: 0
C34: 30 | D34: 129 | E34: 83 | F34: 46 | H34: 23 | I34: 12 | J34: 11 | K34: 12 | L34: 9 | M34: 3 | N34: 6 | O34: 3 | P34: 3 | Q34: 2 | S34: 1 | T34: 1 | U34: 56 | V34: 39 | X34: 17 | Y34: 10 | Z34: 5 | AA34: 5 | AB34: 7 | AC34: 7 | AD34: 0 | AE34: 8 | AF34: 6 | AG34: 2 | AH34: 2 | AI34: 1 | AJ34: 1 | AK34: 3 | AL34: 0 | AN34: 3 | AO34: 0 | AP34: 0 | AQ34: 0 | AR34: 0 | AS34: 0 | AT34: 0 | AU34: 0 | AV34: 0 | AW34: 0 | AX34: 0 | AY34: 0 | AZ34: 0 | BA34: 0 | BB34: 0 | BC34: 0
C35: 31 | D35: 93 | E35: 64 | F35: 29 | H35: 13 | I35: 9 | J35: 4 | K35: 10 | L35: 9 | M35: 1 | N35: 5 | O35: 2 | P35: 3 | Q35: 0 | S35: 0 | T35: 0 | U35: 36 | V35: 23 | X35: 13 | Y35: 6 | Z35: 4 | AA35: 2 | AB35: 10 | AC35: 9 | AD35: 1 | AE35: 6 | AF35: 5 | AG35: 1 | AH35: 7 | AI35: 3 | AJ35: 4 | AK35: 0 | AL35: 0 | AN35: 0 | AO35: 0 | AP35: 0 | AQ35: 0 | AR35: 0 | AS35: 0 | AT35: 0 | AU35: 0 | AV35: 0 | AW35: 0 | AX35: 0 | AY35: 0 | AZ35: 0 | BA35: 0 | BB35: 0 | BC35: 0
C36: 32 | D36: 106 | E36: 74 | F36: 32 | H36: 21 | I36: 15 | J36: 6 | K36: 18 | L36: 13 | M36: 5 | N36: 6 | O36: 3 | P36: 3 | Q36: 0 | S36: 0 | T36: 0 | U36: 35 | V36: 25 | X36: 10 | Y36: 7 | Z36: 4 | AA36: 3 | AB36: 5 | AC36: 5 | AD36: 0 | AE36: 11 | AF36: 6 | AG36: 5 | AH36: 1 | AI36: 1 | AJ36: 0 | AK36: 0 | AL36: 0 | AN36: 0 | AO36: 0 | AP36: 0 | AQ36: 0 | AR36: 0 | AS36: 0 | AT36: 0 | AU36: 0 | AV36: 0 | AW36: 0 | AX36: 1 | AY36: 1 | AZ36: 0 | BA36: 1 | BB36: 1 | BC36: 0
C37: 33 | D37: 86 | E37: 55 | F37: 31 | H37: 22 | I37: 17 | J37: 5 | K37: 10 | L37: 6 | M37: 4 | N37: 6 | O37: 3 | P37: 3 | Q37: 1 | S37: 0 | T37: 1 | U37: 30 | V37: 20 | X37: 10 | Y37: 4 | Z37: 2 | AA37: 2 | AB37: 5 | AC37: 3 | AD37: 2 | AE37: 7 | AF37: 3 | AG37: 4 | AH37: 0 | AI37: 0 | AJ37: 0 | AK37: 0 | AL37: 0 | AN37: 0 | AO37: 0 | AP37: 0 | AQ37: 0 | AR37: 1 | AS37: 1 | AT37: 0 | AU37: 0 | AV37: 0 | AW37: 0 | AX37: 0 | AY37: 0 | AZ37: 0 | BA37: 0 | BB37: 0 | BC37: 0
C38: 34 | D38: 103 | E38: 70 | F38: 33 | H38: 24 | I38: 17 | J38: 7 | K38: 14 | L38: 8 | M38: 6 | N38: 3 | O38: 1 | P38: 2 | Q38: 0 | S38: 0 | T38: 0 | U38: 35 | V38: 24 | X38: 11 | Y38: 10 | Z38: 9 | AA38: 1 | AB38: 6 | AC38: 6 | AD38: 0 | AE38: 6 | AF38: 4 | AG38: 2 | AH38: 3 | AI38: 1 | AJ38: 2 | AK38: 1 | AL38: 0 | AN38: 1 | AO38: 0 | AP38: 0 | AQ38: 0 | AR38: 0 | AS38: 0 | AT38: 0 | AU38: 0 | AV38: 0 | AW38: 0 | AX38: 0 | AY38: 0 | AZ38: 0 | BA38: 1 | BB38: 0 | BC38: 1
C39: 35 | D39: 95 | E39: 64 | F39: 31 | H39: 20 | I39: 13 | J39: 7 | K39: 11 | L39: 9 | M39: 2 | N39: 4 | O39: 3 | P39: 1 | Q39: 0 | S39: 0 | T39: 0 | U39: 32 | V39: 22 | X39: 10 | Y39: 5 | Z39: 3 | AA39: 2 | AB39: 5 | AC39: 5 | AD39: 0 | AE39: 9 | AF39: 6 | AG39: 3 | AH39: 4 | AI39: 1 | AJ39: 3 | AK39: 1 | AL39: 0 | AN39: 1 | AO39: 0 | AP39: 0 | AQ39: 0 | AR39: 1 | AS39: 0 | AT39: 1 | AU39: 1 | AV39: 1 | AW39: 0 | AX39: 2 | AY39: 1 | AZ39: 1 | BA39: 0 | BB39: 0 | BC39: 0
C40: 36 | D40: 111 | E40: 69 | F40: 42 | H40: 33 | I40: 20 | J40: 13 | K40: 20 | L40: 11 | M40: 9 | N40: 4 | O40: 3 | P40: 1 | Q40: 1 | S40: 1 | T40: 0 | U40: 30 | V40: 20 | X40: 10 | Y40: 4 | Z40: 3 | AA40: 1 | AB40: 5 | AC40: 5 | AD40: 0 | AE40: 9 | AF40: 5 | AG40: 4 | AH40: 1 | AI40: 1 | AJ40: 0 | AK40: 1 | AL40: 0 | AN40: 1 | AO40: 1 | AP40: 0 | AQ40: 1 | AR40: 0 | AS40: 0 | AT40: 0 | AU40: 0 | AV40: 0 | AW40: 0 | AX40: 1 | AY40: 0 | AZ40: 1 | BA40: 1 | BB40: 0 | BC40: 1
C41: 37 | D41: 93 | E41: 57 | F41: 36 | H41: 25 | I41: 15 | J41: 10 | K41: 15 | L41: 8 | M41: 7 | N41: 1 | O41: 1 | P41: 0 | Q41: 0 | S41: 0 | T41: 0 | U41: 19 | V41: 11 | X41: 8 | Y41: 6 | Z41: 5 | AA41: 1 | AB41: 3 | AC41: 2 | AD41: 1 | AE41: 11 | AF41: 8 | AG41: 3 | AH41: 8 | AI41: 4 | AJ41: 4 | AK41: 0 | AL41: 0 | AN41: 0 | AO41: 0 | AP41: 0 | AQ41: 0 | AR41: 1 | AS41: 1 | AT41: 0 | AU41: 0 | AV41: 0 | AW41: 0 | AX41: 1 | AY41: 1 | AZ41: 0 | BA41: 3 | BB41: 1 | BC41: 2
C42: 38 | D42: 113 | E42: 79 | F42: 34 | H42: 36 | I42: 32 | J42: 4 | K42: 8 | L42: 4 | M42: 4 | N42: 4 | O42: 0 | P42: 4 | Q42: 1 | S42: 0 | T42: 1 | U42: 31 | V42: 22 | X42: 9 | Y42: 14 | Z42: 9 | AA42: 5 | AB42: 0 | AC42: 0 | AD42: 0 | AE42: 15 | AF42: 9 | AG42: 6 | AH42: 3 | AI42: 2 | AJ42: 1 | AK42: 0 | AL42: 0 | AN42: 0 | AO42: 0 | AP42: 0 | AQ42: 0 | AR42: 0 | AS42: 0 | AT42: 0 | AU42: 0 | AV42: 0 | AW42: 0 | AX42: 1 | AY42: 1 | AZ42: 0 | BA42: 0 | BB42: 0 | BC42: 0
C43: 39 | D43: 130 | E43: 90 | F43: 40 | H43: 41 | I43: 34 | J43: 7 | K43: 21 | L43: 20 | M43: 1 | N43: 3 | O43: 2 | P43: 1 | Q43: 1 | S43: 0 | T43: 1 | U43: 31 | V43: 16 | X43: 15 | Y43: 11 | Z43: 6 | AA43: 5 | AB43: 1 | AC43: 0 | AD43: 1 | AE43: 12 | AF43: 7 | AG43: 5 | AH43: 2 | AI43: 0 | AJ43: 2 | AK43: 2 | AL43: 2 | AN43: 0 | AO43: 1 | AP43: 1 | AQ43: 0 | AR43: 2 | AS43: 0 | AT43: 2 | AU43: 0 | AV43: 0 | AW43: 0 | AX43: 0 | AY43: 0 | AZ43: 0 | BA43: 2 | BB43: 2 | BC43: 0
C44: 40 | D44: 130 | E44: 88 | F44: 42 | H44: 43 | I44: 35 | J44: 8 | K44: 16 | L44: 13 | M44: 3 | N44: 5 | O44: 2 | P44: 3 | Q44: 2 | S44: 1 | T44: 1 | U44: 26 | V44: 15 | X44: 11 | Y44: 10 | Z44: 6 | AA44: 4 | AB44: 3 | AC44: 2 | AD44: 1 | AE44: 16 | AF44: 9 | AG44: 7 | AH44: 6 | AI44: 4 | AJ44: 2 | AK44: 0 | AL44: 0 | AN44: 0 | AO44: 0 | AP44: 0 | AQ44: 0 | AR44: 0 | AS44: 0 | AT44: 0 | AU44: 0 | AV44: 0 | AW44: 0 | AX44: 0 | AY44: 0 | AZ44: 0 | BA44: 3 | BB44: 1 | BC44: 2
C45: 41 | D45: 152 | E45: 109 | F45: 43 | H45: 48 | I45: 37 | J45: 11 | K45: 17 | L45: 13 | M45: 4 | N45: 7 | O45: 4 | P45: 3 | Q45: 1 | S45: 0 | T45: 1 | U45: 42 | V45: 33 | X45: 9 | Y45: 17 | Z45: 11 | AA45: 6 | AB45: 1 | AC45: 1 | AD45: 0 | AE45: 10 | AF45: 5 | AG45: 5 | AH45: 7 | AI45: 5 | AJ45: 2 | AK45: 0 | AL45: 0 | AN45: 0 | AO45: 0 | AP45: 0 | AQ45: 0 | AR45: 0 | AS45: 0 | AT45: 0 | AU45: 0 | AV45: 0 | AW45: 0 | AX45: 1 | AY45: 0 | AZ45: 1 | BA45: 1 | BB45: 0 | BC45: 1
C46: 42 | D46: 142 | E46: 88 | F46: 54 | H46: 51 | I46: 36 | J46: 15 | K46: 15 | L46: 10 | M46: 5 | N46: 12 | O46: 5 | P46: 7 | Q46: 0 | S46: 0 | T46: 0 | U46: 25 | V46: 15 | X46: 10 | Y46: 11 | Z46: 5 | AA46: 6 | AB46: 0 | AC46: 0 | AD46: 0 | AE46: 19 | AF46: 12 | AG46: 7 | AH46: 4 | AI46: 2 | AJ46: 2 | AK46: 0 | AL46: 0 | AN46: 0 | AO46: 1 | AP46: 0 | AQ46: 1 | AR46: 1 | AS46: 1 | AT46: 0 | AU46: 0 | AV46: 0 | AW46: 0 | AX46: 0 | AY46: 0 | AZ46: 0 | BA46: 3 | BB46: 2 | BC46: 1
C47: 43 | D47: 158 | E47: 109 | F47: 49 | H47: 74 | I47: 58 | J47: 16 | K47: 15 | L47: 10 | M47: 5 | N47: 8 | O47: 2 | P47: 6 | Q47: 0 | S47: 0 | T47: 0 | U47: 22 | V47: 12 | X47: 10 | Y47: 12 | Z47: 11 | AA47: 1 | AB47: 0 | AC47: 0 | AD47: 0 | AE47: 15 | AF47: 9 | AG47: 6 | AH47: 8 | AI47: 5 | AJ47: 3 | AK47: 2 | AL47: 2 | AN47: 0 | AO47: 0 | AP47: 0 | AQ47: 0 | AR47: 1 | AS47: 0 | AT47: 1 | AU47: 0 | AV47: 0 | AW47: 0 | AX47: 1 | AY47: 0 | AZ47: 1 | BA47: 0 | BB47: 0 | BC47: 0
C48: 44 | D48: 156 | E48: 111 | F48: 45 | H48: 60 | I48: 48 | J48: 12 | K48: 21 | L48: 12 | M48: 9 | N48: 8 | O48: 6 | P48: 2 | Q48: 1 | S48: 1 | T48: 0 | U48: 25 | V48: 17 | X48: 8 | Y48: 12 | Z48: 6 | AA48: 6 | AB48: 0 | AC48: 0 | AD48: 0 | AE48: 21 | AF48: 16 | AG48: 5 | AH48: 7 | AI48: 5 | AJ48: 2 | AK48: 0 | AL48: 0 | AN48: 0 | AO48: 0 | AP48: 0 | AQ48: 0 | AR48: 0 | AS48: 0 | AT48: 0 | AU48: 1 | AV48: 0 | AW48: 1 | AX48: 0 | AY48: 0 | AZ48: 0 | BA48: 0 | BB48: 0 | BC48: 0
C49: 45 | D49: 171 | E49: 123 | F49: 48 | H49: 52 | I49: 41 | J49: 11 | K49: 19 | L49: 12 | M49: 7 | N49: 7 | O49: 2 | P49: 5 | Q49: 1 | S49: 1 | T49: 0 | U49: 39 | V49: 25 | X49: 14 | Y49: 13 | Z49: 11 | AA49: 2 | AB49: 0 | AC49: 0 | AD49: 0 | AE49: 27 | AF49: 20 | AG49: 7 | AH49: 8 | AI49: 6 | AJ49: 2 | AK49: 0 | AL49: 0 | AN49: 0 | AO49: 1 | AP49: 1 | AQ49: 0 | AR49: 2 | AS49: 2 | AT49: 0 | AU49: 1 | AV49: 1 | AW49: 0 | AX49: 0 | AY49: 0 | AZ49: 0 | BA49: 1 | BB49: 1 | BC49: 0
C50: 46 | D50: 190 | E50: 131 | F50: 59 | H50: 82 | I50: 63 | J50: 19 | K50: 23 | L50: 12 | M50: 11 | N50: 11 | O50: 3 | P50: 8 | Q50: 0 | S50: 0 | T50: 0 | U50: 37 | V50: 30 | X50: 7 | Y50: 9 | Z50: 5 | AA50: 4 | AB50: 2 | AC50: 2 | AD50: 0 | AE50: 15 | AF50: 10 | AG50: 5 | AH50: 7 | AI50: 4 | AJ50: 3 | AK50: 0 | AL50: 0 | AN50: 0 | AO50: 1 | AP50: 1 | AQ50: 0 | AR50: 1 | AS50: 0 | AT50: 1 | AU50: 1 | AV50: 1 | AW50: 0 | AX50: 0 | AY50: 0 | AZ50: 0 | BA50: 1 | BB50: 0 | BC50: 1
C51: 47 | D51: 219 | E51: 157 | F51: 62 | H51: 75 | I51: 65 | J51: 10 | K51: 28 | L51: 24 | M51: 4 | N51: 11 | O51: 5 | P51: 6 | Q51: 3 | S51: 1 | T51: 2 | U51: 28 | V51: 15 | X51: 13 | Y51: 19 | Z51: 11 | AA51: 8 | AB51: 1 | AC51: 1 | AD51: 0 | AE51: 38 | AF51: 22 | AG51: 16 | AH51: 12 | AI51: 11 | AJ51: 1 | AK51: 1 | AL51: 1 | AN51: 0 | AO51: 0 | AP51: 0 | AQ51: 0 | AR51: 1 | AS51: 1 | AT51: 0 | AU51: 0 | AV51: 0 | AW51: 0 | AX51: 0 | AY51: 0 | AZ51: 0 | BA51: 2 | BB51: 0 | BC51: 2
C52: 48 | D52: 224 | E52: 153 | F52: 71 | H52: 75 | I52: 53 | J52: 22 | K52: 30 | L52: 19 | M52: 11 | N52: 10 | O52: 4 | P52: 6 | Q52: 4 | S52: 4 | T52: 0 | U52: 33 | V52: 25 | X52: 8 | Y52: 28 | Z52: 16 | AA52: 12 | AB52: 0 | AC52: 0 | AD52: 0 | AE52: 26 | AF52: 19 | AG52: 7 | AH52: 10 | AI52: 8 | AJ52: 2 | AK52: 0 | AL52: 0 | AN52: 0 | AO52: 1 | AP52: 1 | AQ52: 0 | AR52: 3 | AS52: 3 | AT52: 0 | AU52: 2 | AV52: 0 | AW52: 2 | AX52: 0 | AY52: 0 | AZ52: 0 | BA52: 2 | BB52: 1 | BC52: 1
C53: 49 | D53: 259 | E53: 191 | F53: 68 | H53: 92 | I53: 75 | J53: 17 | K53: 37 | L53: 28 | M53: 9 | N53: 10 | O53: 6 | P53: 4 | Q53: 5 | S53: 3 | T53: 2 | U53: 30 | V53: 24 | X53: 6 | Y53: 22 | Z53: 16 | AA53: 6 | AB53: 0 | AC53: 0 | AD53: 0 | AE53: 43 | AF53: 25 | AG53: 18 | AH53: 10 | AI53: 9 | AJ53: 1 | AK53: 2 | AL53: 1 | AN53: 1 | AO53: 0 | AP53: 0 | AQ53: 0 | AR53: 3 | AS53: 2 | AT53: 1 | AU53: 1 | AV53: 0 | AW53: 1 | AX53: 1 | AY53: 1 | AZ53: 0 | BA53: 3 | BB53: 1 | BC53: 2
C54: 50 | D54: 290 | E54: 199 | F54: 91 | H54: 102 | I54: 77 | J54: 25 | K54: 31 | L54: 22 | M54: 9 | N54: 15 | O54: 8 | P54: 7 | Q54: 2 | S54: 2 | T54: 0 | U54: 45 | V54: 34 | X54: 11 | Y54: 27 | Z54: 19 | AA54: 8 | AB54: 0 | AC54: 0 | AD54: 0 | AE54: 35 | AF54: 16 | AG54: 19 | AH54: 19 | AI54: 13 | AJ54: 6 | AK54: 0 | AL54: 0 | AN54: 0 | AO54: 3 | AP54: 1 | AQ54: 2 | AR54: 2 | AS54: 0 | AT54: 2 | AU54: 2 | AV54: 1 | AW54: 1 | AX54: 1 | AY54: 1 | AZ54: 0 | BA54: 6 | BB54: 5 | BC54: 1
C55: 51 | D55: 280 | E55: 193 | F55: 87 | H55: 110 | I55: 85 | J55: 25 | K55: 34 | L55: 21 | M55: 13 | N55: 13 | O55: 5 | P55: 8 | Q55: 2 | S55: 2 | T55: 0 | U55: 27 | V55: 18 | X55: 9 | Y55: 19 | Z55: 17 | AA55: 2 | AB55: 0 | AC55: 0 | AD55: 0 | AE55: 50 | AF55: 28 | AG55: 22 | AH55: 18 | AI55: 13 | AJ55: 5 | AK55: 1 | AL55: 0 | AN55: 1 | AO55: 0 | AP55: 0 | AQ55: 0 | AR55: 5 | AS55: 4 | AT55: 1 | AU55: 1 | AV55: 0 | AW55: 1 | AX55: 0 | AY55: 0 | AZ55: 0 | BA55: 0 | BB55: 0 | BC55: 0
C56: 52 | D56: 275 | E56: 181 | F56: 94 | H56: 119 | I56: 86 | J56: 33 | K56: 27 | L56: 18 | M56: 9 | N56: 10 | O56: 5 | P56: 5 | Q56: 1 | S56: 1 | T56: 0 | U56: 31 | V56: 21 | X56: 10 | Y56: 21 | Z56: 16 | AA56: 5 | AB56: 0 | AC56: 0 | AD56: 0 | AE56: 36 | AF56: 19 | AG56: 17 | AH56: 18 | AI56: 12 | AJ56: 6 | AK56: 1 | AL56: 0 | AN56: 1 | AO56: 1 | AP56: 0 | AQ56: 1 | AR56: 2 | AS56: 2 | AT56: 0 | AU56: 0 | AV56: 0 | AW56: 0 | AX56: 2 | AY56: 1 | AZ56: 1 | BA56: 6 | BB56: 0 | BC56: 6
C57: 53 | D57: 318 | E57: 229 | F57: 89 | H57: 139 | I57: 106 | J57: 33 | K57: 40 | L57: 29 | M57: 11 | N57: 18 | O57: 12 | P57: 6 | Q57: 4 | S57: 2 | T57: 2 | U57: 17 | V57: 14 | X57: 3 | Y57: 29 | Z57: 20 | AA57: 9 | AB57: 0 | AC57: 0 | AD57: 0 | AE57: 44 | AF57: 29 | AG57: 15 | AH57: 16 | AI57: 10 | AJ57: 6 | AK57: 1 | AL57: 1 | AN57: 0 | AO57: 2 | AP57: 1 | AQ57: 1 | AR57: 6 | AS57: 4 | AT57: 2 | AU57: 0 | AV57: 0 | AW57: 0 | AX57: 1 | AY57: 0 | AZ57: 1 | BA57: 1 | BB57: 1 | BC57: 0
C58: 54 | D58: 324 | E58: 219 | F58: 105 | H58: 148 | I58: 112 | J58: 36 | K58: 33 | L58: 21 | M58: 12 | N58: 21 | O58: 11 | P58: 10 | Q58: 3 | S58: 2 | T58: 1 | U58: 19 | V58: 11 | X58: 8 | Y58: 26 | Z58: 15 | AA58: 11 | AB58: 0 | AC58: 0 | AD58: 0 | AE58: 44 | AF58: 28 | AG58: 16 | AH58: 19 | AI58: 12 | AJ58: 7 | AK58: 1 | AL58: 0 | AN58: 1 | AO58: 1 | AP58: 1 | AQ58: 0 | AR58: 7 | AS58: 6 | AT58: 1 | AU58: 0 | AV58: 0 | AW58: 0 | AX58: 0 | AY58: 0 | AZ58: 0 | BA58: 2 | BB58: 0 | BC58: 2
C59: 55 | D59: 339 | E59: 240 | F59: 99 | H59: 150 | I59: 110 | J59: 40 | K59: 39 | L59: 28 | M59: 11 | N59: 16 | O59: 8 | P59: 8 | Q59: 6 | S59: 5 | T59: 1 | U59: 16 | V59: 14 | X59: 2 | Y59: 31 | Z59: 24 | AA59: 7 | AB59: 0 | AC59: 0 | AD59: 0 | AE59: 44 | AF59: 27 | AG59: 17 | AH59: 26 | AI59: 17 | AJ59: 9 | AK59: 0 | AL59: 0 | AN59: 0 | AO59: 2 | AP59: 0 | AQ59: 2 | AR59: 3 | AS59: 3 | AT59: 0 | AU59: 1 | AV59: 1 | AW59: 0 | AX59: 4 | AY59: 2 | AZ59: 2 | BA59: 1 | BB59: 1 | BC59: 0
C60: 56 | D60: 334 | E60: 212 | F60: 122 | H60: 146 | I60: 94 | J60: 52 | K60: 43 | L60: 27 | M60: 16 | N60: 25 | O60: 14 | P60: 11 | Q60: 3 | S60: 3 | T60: 0 | U60: 20 | V60: 12 | X60: 8 | Y60: 28 | Z60: 21 | AA60: 7 | AB60: 0 | AC60: 0 | AD60: 0 | AE60: 34 | AF60: 17 | AG60: 17 | AH60: 21 | AI60: 11 | AJ60: 10 | AK60: 1 | AL60: 1 | AN60: 0 | AO60: 3 | AP60: 3 | AQ60: 0 | AR60: 6 | AS60: 5 | AT60: 1 | AU60: 0 | AV60: 0 | AW60: 0 | AX60: 2 | AY60: 2 | AZ60: 0 | BA60: 2 | BB60: 2 | BC60: 0
C61: 57 | D61: 318 | E61: 214 | F61: 104 | H61: 143 | I61: 106 | J61: 37 | K61: 41 | L61: 23 | M61: 18 | N61: 29 | O61: 18 | P61: 11 | Q61: 4 | S61: 3 | T61: 1 | U61: 14 | V61: 8 | X61: 6 | Y61: 29 | Z61: 18 | AA61: 11 | AB61: 0 | AC61: 0 | AD61: 0 | AE61: 32 | AF61: 21 | AG61: 11 | AH61: 22 | AI61: 14 | AJ61: 8 | AK61: 0 | AL61: 0 | AN61: 0 | AO61: 1 | AP61: 0 | AQ61: 1 | AR61: 3 | AS61: 3 | AT61: 0 | AU61: 0 | AV61: 0 | AW61: 0 | AX61: 0 | AY61: 0 | AZ61: 0 | BA61: 0 | BB61: 0 | BC61: 0
C62: 58 | D62: 381 | E62: 259 | F62: 122 | H62: 188 | I62: 129 | J62: 59 | K62: 40 | L62: 30 | M62: 10 | N62: 31 | O62: 21 | P62: 10 | Q62: 3 | S62: 2 | T62: 1 | U62: 13 | V62: 8 | X62: 5 | Y62: 44 | Z62: 31 | AA62: 13 | AB62: 0 | AC62: 0 | AD62: 0 | AE62: 25 | AF62: 15 | AG62: 10 | AH62: 24 | AI62: 15 | AJ62: 9 | AK62: 2 | AL62: 1 | AN62: 1 | AO62: 2 | AP62: 1 | AQ62: 1 | AR62: 6 | AS62: 3 | AT62: 3 | AU62: 0 | AV62: 0 | AW62: 0 | AX62: 3 | AY62: 3 | AZ62: 0 | BA62: 0 | BB62: 0 | BC62: 0
C63: 59 | D63: 393 | E63: 269 | F63: 124 | H63: 195 | I63: 141 | J63: 54 | K63: 52 | L63: 36 | M63: 16 | N63: 24 | O63: 17 | P63: 7 | Q63: 3 | S63: 3 | T63: 0 | U63: 13 | V63: 13 | X63: 0 | Y63: 38 | Z63: 22 | AA63: 16 | AB63: 0 | AC63: 0 | AD63: 0 | AE63: 32 | AF63: 15 | AG63: 17 | AH63: 23 | AI63: 15 | AJ63: 8 | AK63: 1 | AL63: 0 | AN63: 1 | AO63: 1 | AP63: 1 | AQ63: 0 | AR63: 7 | AS63: 4 | AT63: 3 | AU63: 1 | AV63: 0 | AW63: 1 | AX63: 2 | AY63: 1 | AZ63: 1 | BA63: 1 | BB63: 1 | BC63: 0
C64: 60 | D64: 403 | E64: 284 | F64: 119 | H64: 182 | I64: 125 | J64: 57 | K64: 46 | L64: 35 | M64: 11 | N64: 36 | O64: 22 | P64: 14 | Q64: 2 | S64: 2 | T64: 0 | U64: 19 | V64: 15 | X64: 4 | Y64: 41 | Z64: 34 | AA64: 7 | AB64: 0 | AC64: 0 | AD64: 0 | AE64: 45 | AF64: 30 | AG64: 15 | AH64: 17 | AI64: 9 | AJ64: 8 | AK64: 0 | AL64: 0 | AN64: 0 | AO64: 3 | AP64: 2 | AQ64: 1 | AR64: 5 | AS64: 4 | AT64: 1 | AU64: 0 | AV64: 0 | AW64: 0 | AX64: 4 | AY64: 4 | AZ64: 0 | BA64: 3 | BB64: 2 | BC64: 1
C65: 61 | D65: 516 | E65: 330 | F65: 186 | H65: 249 | I65: 160 | J65: 89 | K65: 57 | L65: 38 | M65: 19 | N65: 48 | O65: 29 | P65: 19 | Q65: 1 | S65: 1 | T65: 0 | U65: 17 | V65: 11 | X65: 6 | Y65: 55 | Z65: 32 | AA65: 23 | AB65: 0 | AC65: 0 | AD65: 0 | AE65: 42 | AF65: 29 | AG65: 13 | AH65: 26 | AI65: 17 | AJ65: 9 | AK65: 2 | AL65: 1 | AN65: 1 | AO65: 3 | AP65: 1 | AQ65: 2 | AR65: 8 | AS65: 5 | AT65: 3 | AU65: 0 | AV65: 0 | AW65: 0 | AX65: 5 | AY65: 3 | AZ65: 2 | BA65: 3 | BB65: 3 | BC65: 0
C66: 62 | D66: 535 | E66: 353 | F66: 182 | H66: 266 | I66: 180 | J66: 86 | K66: 58 | L66: 40 | M66: 18 | N66: 46 | O66: 24 | P66: 22 | Q66: 9 | S66: 7 | T66: 2 | U66: 13 | V66: 11 | X66: 2 | Y66: 49 | Z66: 35 | AA66: 14 | AB66: 0 | AC66: 0 | AD66: 0 | AE66: 42 | AF66: 27 | AG66: 15 | AH66: 30 | AI66: 18 | AJ66: 12 | AK66: 1 | AL66: 1 | AN66: 0 | AO66: 5 | AP66: 3 | AQ66: 2 | AR66: 11 | AS66: 6 | AT66: 5 | AU66: 0 | AV66: 0 | AW66: 0 | AX66: 4 | AY66: 0 | AZ66: 4 | BA66: 1 | BB66: 1 | BC66: 0
C67: 63 | D67: 486 | E67: 324 | F67: 162 | H67: 230 | I67: 157 | J67: 73 | K67: 46 | L67: 33 | M67: 13 | N67: 47 | O67: 23 | P67: 24 | Q67: 3 | S67: 1 | T67: 2 | U67: 16 | V67: 9 | X67: 7 | Y67: 66 | Z67: 49 | AA67: 17 | AB67: 0 | AC67: 0 | AD67: 0 | AE67: 41 | AF67: 27 | AG67: 14 | AH67: 27 | AI67: 17 | AJ67: 10 | AK67: 0 | AL67: 0 | AN67: 0 | AO67: 2 | AP67: 2 | AQ67: 0 | AR67: 5 | AS67: 4 | AT67: 1 | AU67: 0 | AV67: 0 | AW67: 0 | AX67: 3 | AY67: 2 | AZ67: 1 | BA67: 0 | BB67: 0 | BC67: 0
C68: 64 | D68: 456 | E68: 276 | F68: 180 | H68: 229 | I68: 133 | J68: 96 | K68: 48 | L68: 30 | M68: 18 | N68: 45 | O68: 29 | P68: 16 | Q68: 4 | S68: 1 | T68: 3 | U68: 9 | V68: 5 | X68: 4 | Y68: 59 | Z68: 35 | AA68: 24 | AB68: 0 | AC68: 0 | AD68: 0 | AE68: 25 | AF68: 19 | AG68: 6 | AH68: 23 | AI68: 12 | AJ68: 11 | AK68: 1 | AL68: 1 | AN68: 0 | AO68: 4 | AP68: 3 | AQ68: 1 | AR68: 4 | AS68: 4 | AT68: 0 | AU68: 1 | AV68: 1 | AW68: 0 | AX68: 4 | AY68: 3 | AZ68: 1 | BA68: 0 | BB68: 0 | BC68: 0
C69: 65 | D69: 449 | E69: 279 | F69: 170 | H69: 235 | I69: 140 | J69: 95 | K69: 43 | L69: 27 | M69: 16 | N69: 49 | O69: 31 | P69: 18 | Q69: 2 | S69: 1 | T69: 1 | U69: 10 | V69: 7 | X69: 3 | Y69: 46 | Z69: 32 | AA69: 14 | AB69: 0 | AC69: 0 | AD69: 0 | AE69: 25 | AF69: 17 | AG69: 8 | AH69: 23 | AI69: 14 | AJ69: 9 | AK69: 2 | AL69: 1 | AN69: 1 | AO69: 5 | AP69: 2 | AQ69: 3 | AR69: 4 | AS69: 3 | AT69: 1 | AU69: 1 | AV69: 1 | AW69: 0 | AX69: 3 | AY69: 2 | AZ69: 1 | BA69: 1 | BB69: 1 | BC69: 0
C70: 66 | D70: 483 | E70: 294 | F70: 189 | H70: 247 | I70: 143 | J70: 104 | K70: 45 | L70: 29 | M70: 16 | N70: 50 | O70: 23 | P70: 27 | Q70: 4 | S70: 3 | T70: 1 | U70: 11 | V70: 6 | X70: 5 | Y70: 60 | Z70: 45 | AA70: 15 | AB70: 0 | AC70: 0 | AD70: 0 | AE70: 27 | AF70: 21 | AG70: 6 | AH70: 26 | AI70: 14 | AJ70: 12 | AK70: 1 | AL70: 0 | AN70: 1 | AO70: 3 | AP70: 3 | AQ70: 0 | AR70: 3 | AS70: 3 | AT70: 0 | AU70: 0 | AV70: 0 | AW70: 0 | AX70: 3 | AY70: 2 | AZ70: 1 | BA70: 3 | BB70: 2 | BC70: 1
C71: 67 | D71: 512 | E71: 307 | F71: 205 | H71: 261 | I71: 155 | J71: 106 | K71: 53 | L71: 35 | M71: 18 | N71: 50 | O71: 28 | P71: 22 | Q71: 7 | S71: 6 | T71: 1 | U71: 7 | V71: 3 | X71: 4 | Y71: 57 | Z71: 33 | AA71: 24 | AB71: 0 | AC71: 0 | AD71: 0 | AE71: 29 | AF71: 17 | AG71: 12 | AH71: 28 | AI71: 15 | AJ71: 13 | AK71: 1 | AL71: 0 | AN71: 1 | AO71: 5 | AP71: 3 | AQ71: 2 | AR71: 6 | AS71: 6 | AT71: 0 | AU71: 0 | AV71: 0 | AW71: 0 | AX71: 7 | AY71: 5 | AZ71: 2 | BA71: 1 | BB71: 1 | BC71: 0
C72: 68 | D72: 496 | E72: 271 | F72: 225 | H72: 257 | I72: 130 | J72: 127 | K72: 44 | L72: 26 | M72: 18 | N72: 60 | O72: 42 | P72: 18 | Q72: 4 | S72: 4 | T72: 0 | U72: 6 | V72: 5 | X72: 1 | Y72: 62 | Z72: 34 | AA72: 28 | AB72: 0 | AC72: 0 | AD72: 0 | AE72: 18 | AF72: 7 | AG72: 11 | AH72: 26 | AI72: 13 | AJ72: 13 | AK72: 0 | AL72: 0 | AN72: 0 | AO72: 4 | AP72: 2 | AQ72: 2 | AR72: 7 | AS72: 4 | AT72: 3 | AU72: 0 | AV72: 0 | AW72: 0 | AX72: 7 | AY72: 4 | AZ72: 3 | BA72: 1 | BB72: 0 | BC72: 1
C73: 69 | D73: 481 | E73: 281 | F73: 200 | H73: 225 | I73: 120 | J73: 105 | K73: 56 | L73: 30 | M73: 26 | N73: 64 | O73: 41 | P73: 23 | Q73: 4 | S73: 3 | T73: 1 | U73: 4 | V73: 3 | X73: 1 | Y73: 64 | Z73: 46 | AA73: 18 | AB73: 0 | AC73: 0 | AD73: 0 | AE73: 24 | AF73: 14 | AG73: 10 | AH73: 20 | AI73: 12 | AJ73: 8 | AK73: 0 | AL73: 0 | AN73: 0 | AO73: 5 | AP73: 3 | AQ73: 2 | AR73: 7 | AS73: 4 | AT73: 3 | AU73: 0 | AV73: 0 | AW73: 0 | AX73: 8 | AY73: 5 | AZ73: 3 | BA73: 0 | BB73: 0 | BC73: 0
C74: 70 | D74: 480 | E74: 290 | F74: 190 | H74: 227 | I74: 120 | J74: 107 | K74: 48 | L74: 31 | M74: 17 | N74: 72 | O74: 44 | P74: 28 | Q74: 3 | S74: 3 | T74: 0 | U74: 8 | V74: 7 | X74: 1 | Y74: 67 | Z74: 48 | AA74: 19 | AB74: 0 | AC74: 0 | AD74: 0 | AE74: 14 | AF74: 9 | AG74: 5 | AH74: 25 | AI74: 19 | AJ74: 6 | AK74: 0 | AL74: 0 | AN74: 0 | AO74: 1 | AP74: 1 | AQ74: 0 | AR74: 5 | AS74: 3 | AT74: 2 | AU74: 1 | AV74: 0 | AW74: 1 | AX74: 9 | AY74: 5 | AZ74: 4 | BA74: 0 | BB74: 0 | BC74: 0
C75: 71 | D75: 414 | E75: 210 | F75: 204 | H75: 203 | I75: 87 | J75: 116 | K75: 33 | L75: 15 | M75: 18 | N75: 65 | O75: 41 | P75: 24 | Q75: 4 | S75: 4 | T75: 0 | U75: 8 | V75: 6 | X75: 2 | Y75: 49 | Z75: 24 | AA75: 25 | AB75: 0 | AC75: 0 | AD75: 0 | AE75: 15 | AF75: 7 | AG75: 8 | AH75: 23 | AI75: 14 | AJ75: 9 | AK75: 0 | AL75: 0 | AN75: 0 | AO75: 5 | AP75: 5 | AQ75: 0 | AR75: 4 | AS75: 4 | AT75: 0 | AU75: 1 | AV75: 1 | AW75: 0 | AX75: 4 | AY75: 2 | AZ75: 2 | BA75: 0 | BB75: 0 | BC75: 0
C76: 72 | D76: 556 | E76: 326 | F76: 230 | H76: 257 | I76: 136 | J76: 121 | K76: 67 | L76: 37 | M76: 30 | N76: 96 | O76: 67 | P76: 29 | Q76: 4 | S76: 3 | T76: 1 | U76: 3 | V76: 3 | X76: 0 | Y76: 62 | Z76: 37 | AA76: 25 | AB76: 0 | AC76: 0 | AD76: 0 | AE76: 23 | AF76: 16 | AG76: 7 | AH76: 29 | AI76: 17 | AJ76: 12 | AK76: 0 | AL76: 0 | AN76: 0 | AO76: 5 | AP76: 4 | AQ76: 1 | AR76: 6 | AS76: 5 | AT76: 1 | AU76: 0 | AV76: 0 | AW76: 0 | AX76: 4 | AY76: 1 | AZ76: 3 | BA76: 0 | BB76: 0 | BC76: 0
C77: 73 | D77: 516 | E77: 272 | F77: 244 | H77: 255 | I77: 113 | J77: 142 | K77: 63 | L77: 37 | M77: 26 | N77: 99 | O77: 59 | P77: 40 | Q77: 3 | S77: 1 | T77: 2 | U77: 2 | V77: 1 | X77: 1 | Y77: 56 | Z77: 34 | AA77: 22 | AB77: 0 | AC77: 0 | AD77: 0 | AE77: 11 | AF77: 9 | AG77: 2 | AH77: 16 | AI77: 10 | AJ77: 6 | AK77: 0 | AL77: 0 | AN77: 0 | AO77: 5 | AP77: 5 | AQ77: 0 | AR77: 3 | AS77: 2 | AT77: 1 | AU77: 0 | AV77: 0 | AW77: 0 | AX77: 1 | AY77: 1 | AZ77: 0 | BA77: 2 | BB77: 0 | BC77: 2
C78: 74 | D78: 524 | E78: 277 | F78: 247 | H78: 256 | I78: 126 | J78: 130 | K78: 63 | L78: 34 | M78: 29 | N78: 97 | O78: 57 | P78: 40 | Q78: 7 | S78: 5 | T78: 2 | U78: 1 | V78: 0 | X78: 1 | Y78: 52 | Z78: 32 | AA78: 20 | AB78: 0 | AC78: 0 | AD78: 0 | AE78: 10 | AF78: 3 | AG78: 7 | AH78: 18 | AI78: 8 | AJ78: 10 | AK78: 1 | AL78: 0 | AN78: 1 | AO78: 7 | AP78: 5 | AQ78: 2 | AR78: 3 | AS78: 1 | AT78: 2 | AU78: 0 | AV78: 0 | AW78: 0 | AX78: 9 | AY78: 6 | AZ78: 3 | BA78: 0 | BB78: 0 | BC78: 0
C79: 75 | D79: 578 | E79: 322 | F79: 256 | H79: 271 | I79: 134 | J79: 137 | K79: 76 | L79: 41 | M79: 35 | N79: 125 | O79: 81 | P79: 44 | Q79: 5 | S79: 3 | T79: 2 | U79: 2 | V79: 1 | X79: 1 | Y79: 56 | Z79: 36 | AA79: 20 | AB79: 0 | AC79: 0 | AD79: 0 | AE79: 7 | AF79: 4 | AG79: 3 | AH79: 18 | AI79: 12 | AJ79: 6 | AK79: 2 | AL79: 1 | AN79: 1 | AO79: 7 | AP79: 6 | AQ79: 1 | AR79: 0 | AS79: 0 | AT79: 0 | AU79: 0 | AV79: 0 | AW79: 0 | AX79: 9 | AY79: 3 | AZ79: 6 | BA79: 0 | BB79: 0 | BC79: 0
C80: 76 | D80: 417 | E80: 218 | F80: 199 | H80: 219 | I80: 100 | J80: 119 | K80: 47 | L80: 23 | M80: 24 | N80: 73 | O80: 48 | P80: 25 | Q80: 4 | S80: 3 | T80: 1 | U80: 0 | V80: 0 | X80: 0 | Y80: 46 | Z80: 27 | AA80: 19 | AB80: 0 | AC80: 0 | AD80: 0 | AE80: 6 | AF80: 3 | AG80: 3 | AH80: 15 | AI80: 9 | AJ80: 6 | AK80: 0 | AL80: 0 | AN80: 0 | AO80: 5 | AP80: 4 | AQ80: 1 | AR80: 0 | AS80: 0 | AT80: 0 | AU80: 0 | AV80: 0 | AW80: 0 | AX80: 2 | AY80: 1 | AZ80: 1 | BA80: 0 | BB80: 0 | BC80: 0
C81: 77 | D81: 483 | E81: 224 | F81: 259 | H81: 229 | I81: 88 | J81: 141 | K81: 52 | L81: 25 | M81: 27 | N81: 110 | O81: 57 | P81: 53 | Q81: 4 | S81: 3 | T81: 1 | U81: 3 | V81: 2 | X81: 1 | Y81: 48 | Z81: 25 | AA81: 23 | AB81: 0 | AC81: 0 | AD81: 0 | AE81: 4 | AF81: 3 | AG81: 1 | AH81: 17 | AI81: 8 | AJ81: 9 | AK81: 1 | AL81: 0 | AN81: 1 | AO81: 6 | AP81: 5 | AQ81: 1 | AR81: 1 | AS81: 1 | AT81: 0 | AU81: 1 | AV81: 1 | AW81: 0 | AX81: 7 | AY81: 6 | AZ81: 1 | BA81: 0 | BB81: 0 | BC81: 0
C82: 78 | D82: 498 | E82: 249 | F82: 249 | H82: 230 | I82: 94 | J82: 136 | K82: 50 | L82: 27 | M82: 23 | N82: 121 | O82: 72 | P82: 49 | Q82: 3 | S82: 3 | T82: 0 | U82: 2 | V82: 1 | X82: 1 | Y82: 58 | Z82: 28 | AA82: 30 | AB82: 0 | AC82: 0 | AD82: 0 | AE82: 5 | AF82: 4 | AG82: 1 | AH82: 16 | AI82: 11 | AJ82: 5 | AK82: 1 | AL82: 0 | AN82: 1 | AO82: 4 | AP82: 3 | AQ82: 1 | AR82: 1 | AS82: 0 | AT82: 1 | AU82: 1 | AV82: 1 | AW82: 0 | AX82: 5 | AY82: 5 | AZ82: 0 | BA82: 1 | BB82: 0 | BC82: 1
C83: 79 | D83: 596 | E83: 291 | F83: 305 | H83: 270 | I83: 99 | J83: 171 | K83: 66 | L83: 36 | M83: 30 | N83: 155 | O83: 97 | P83: 58 | Q83: 5 | S83: 4 | T83: 1 | U83: 1 | V83: 0 | X83: 1 | Y83: 51 | Z83: 28 | AA83: 23 | AB83: 0 | AC83: 0 | AD83: 0 | AE83: 5 | AF83: 4 | AG83: 1 | AH83: 24 | AI83: 10 | AJ83: 14 | AK83: 1 | AL83: 1 | AN83: 0 | AO83: 5 | AP83: 5 | AQ83: 0 | AR83: 2 | AS83: 0 | AT83: 2 | AU83: 2 | AV83: 1 | AW83: 1 | AX83: 8 | AY83: 6 | AZ83: 2 | BA83: 1 | BB83: 0 | BC83: 1
C84: 80 | D84: 597 | E84: 280 | F84: 317 | H84: 279 | I84: 99 | J84: 180 | K84: 64 | L84: 34 | M84: 30 | N84: 148 | O84: 85 | P84: 63 | Q84: 1 | S84: 0 | T84: 1 | U84: 2 | V84: 2 | X84: 0 | Y84: 67 | Z84: 36 | AA84: 31 | AB84: 0 | AC84: 0 | AD84: 0 | AE84: 2 | AF84: 0 | AG84: 2 | AH84: 19 | AI84: 15 | AJ84: 4 | AK84: 0 | AL84: 0 | AN84: 0 | AO84: 2 | AP84: 1 | AQ84: 1 | AR84: 2 | AS84: 0 | AT84: 2 | AU84: 1 | AV84: 0 | AW84: 1 | AX84: 9 | AY84: 7 | AZ84: 2 | BA84: 1 | BB84: 1 | BC84: 0
C85: 81 | D85: 444 | E85: 207 | F85: 237 | H85: 193 | I85: 79 | J85: 114 | K85: 50 | L85: 22 | M85: 28 | N85: 128 | O85: 68 | P85: 60 | Q85: 2 | S85: 2 | T85: 0 | U85: 2 | V85: 2 | X85: 0 | Y85: 44 | Z85: 22 | AA85: 22 | AB85: 0 | AC85: 0 | AD85: 0 | AE85: 3 | AF85: 1 | AG85: 2 | AH85: 15 | AI85: 6 | AJ85: 9 | AK85: 0 | AL85: 0 | AN85: 0 | AO85: 1 | AP85: 1 | AQ85: 0 | AR85: 0 | AS85: 0 | AT85: 0 | AU85: 0 | AV85: 0 | AW85: 0 | AX85: 6 | AY85: 4 | AZ85: 2 | BA85: 0 | BB85: 0 | BC85: 0
C86: 82 | D86: 441 | E86: 219 | F86: 222 | H86: 186 | I86: 75 | J86: 111 | K86: 44 | L86: 23 | M86: 21 | N86: 134 | O86: 86 | P86: 48 | Q86: 4 | S86: 3 | T86: 1 | U86: 0 | V86: 0 | X86: 0 | Y86: 42 | Z86: 16 | AA86: 26 | AB86: 0 | AC86: 0 | AD86: 0 | AE86: 1 | AF86: 0 | AG86: 1 | AH86: 20 | AI86: 10 | AJ86: 10 | AK86: 0 | AL86: 0 | AN86: 0 | AO86: 2 | AP86: 1 | AQ86: 1 | AR86: 1 | AS86: 1 | AT86: 0 | AU86: 1 | AV86: 0 | AW86: 1 | AX86: 6 | AY86: 4 | AZ86: 2 | BA86: 0 | BB86: 0 | BC86: 0
C87: 83 | D87: 397 | E87: 191 | F87: 206 | H87: 151 | I87: 43 | J87: 108 | K87: 47 | L87: 27 | M87: 20 | N87: 124 | O87: 78 | P87: 46 | Q87: 1 | S87: 1 | T87: 0 | U87: 0 | V87: 0 | X87: 0 | Y87: 42 | Z87: 20 | AA87: 22 | AB87: 0 | AC87: 0 | AD87: 0 | AE87: 3 | AF87: 2 | AG87: 1 | AH87: 17 | AI87: 11 | AJ87: 6 | AK87: 1 | AL87: 0 | AN87: 1 | AO87: 3 | AP87: 3 | AQ87: 0 | AR87: 0 | AS87: 0 | AT87: 0 | AU87: 0 | AV87: 0 | AW87: 0 | AX87: 8 | AY87: 6 | AZ87: 2 | BA87: 0 | BB87: 0 | BC87: 0
C88: 84 | D88: 396 | E88: 168 | F88: 228 | H88: 157 | I88: 53 | J88: 104 | K88: 29 | L88: 11 | M88: 18 | N88: 141 | O88: 72 | P88: 69 | Q88: 3 | S88: 2 | T88: 1 | U88: 1 | V88: 1 | X88: 0 | Y88: 44 | Z88: 16 | AA88: 28 | AB88: 0 | AC88: 0 | AD88: 0 | AE88: 0 | AF88: 0 | AG88: 0 | AH88: 10 | AI88: 7 | AJ88: 3 | AK88: 3 | AL88: 1 | AN88: 2 | AO88: 0 | AP88: 0 | AQ88: 0 | AR88: 0 | AS88: 0 | AT88: 0 | AU88: 0 | AV88: 0 | AW88: 0 | AX88: 8 | AY88: 5 | AZ88: 3 | BA88: 0 | BB88: 0 | BC88: 0
C89: 85 | D89: 370 | E89: 150 | F89: 220 | H89: 161 | I89: 47 | J89: 114 | K89: 35 | L89: 20 | M89: 15 | N89: 127 | O89: 59 | P89: 68 | Q89: 2 | S89: 1 | T89: 1 | U89: 0 | V89: 0 | X89: 0 | Y89: 30 | Z89: 11 | AA89: 19 | AB89: 0 | AC89: 0 | AD89: 0 | AE89: 1 | AF89: 1 | AG89: 0 | AH89: 9 | AI89: 6 | AJ89: 3 | AK89: 1 | AL89: 1 | AN89: 0 | AO89: 1 | AP89: 1 | AQ89: 0 | AR89: 0 | AS89: 0 | AT89: 0 | AU89: 0 | AV89: 0 | AW89: 0 | AX89: 3 | AY89: 3 | AZ89: 0 | BA89: 0 | BB89: 0 | BC89: 0
C90: 86 | D90: 311 | E90: 137 | F90: 174 | H90: 100 | I90: 28 | J90: 72 | K90: 26 | L90: 14 | M90: 12 | N90: 122 | O90: 62 | P90: 60 | Q90: 1 | S90: 0 | T90: 1 | U90: 0 | V90: 0 | X90: 0 | Y90: 41 | Z90: 19 | AA90: 22 | AB90: 0 | AC90: 0 | AD90: 0 | AE90: 1 | AF90: 1 | AG90: 0 | AH90: 12 | AI90: 7 | AJ90: 5 | AK90: 1 | AL90: 1 | AN90: 0 | AO90: 1 | AP90: 1 | AQ90: 0 | AR90: 1 | AS90: 0 | AT90: 1 | AU90: 0 | AV90: 0 | AW90: 0 | AX90: 5 | AY90: 4 | AZ90: 1 | BA90: 0 | BB90: 0 | BC90: 0
C91: 87 | D91: 241 | E91: 76 | F91: 165 | H91: 90 | I91: 16 | J91: 74 | K91: 26 | L91: 8 | M91: 18 | N91: 89 | O91: 40 | P91: 49 | Q91: 0 | S91: 0 | T91: 0 | U91: 2 | V91: 0 | X91: 2 | Y91: 22 | Z91: 6 | AA91: 16 | AB91: 0 | AC91: 0 | AD91: 0 | AE91: 1 | AF91: 0 | AG91: 1 | AH91: 6 | AI91: 3 | AJ91: 3 | AK91: 1 | AL91: 0 | AN91: 1 | AO91: 0 | AP91: 0 | AQ91: 0 | AR91: 0 | AS91: 0 | AT91: 0 | AU91: 0 | AV91: 0 | AW91: 0 | AX91: 4 | AY91: 3 | AZ91: 1 | BA91: 0 | BB91: 0 | BC91: 0
C92: 88 | D92: 196 | E92: 73 | F92: 123 | H92: 74 | I92: 19 | J92: 55 | K92: 14 | L92: 4 | M92: 10 | N92: 83 | O92: 39 | P92: 44 | Q92: 2 | S92: 2 | T92: 0 | U92: 0 | V92: 0 | X92: 0 | Y92: 18 | Z92: 6 | AA92: 12 | AB92: 0 | AC92: 0 | AD92: 0 | AE92: 1 | AF92: 0 | AG92: 1 | AH92: 3 | AI92: 2 | AJ92: 1 | AK92: 1 | AL92: 1 | AN92: 0 | AO92: 0 | AP92: 0 | AQ92: 0 | AR92: 0 | AS92: 0 | AT92: 0 | AU92: 0 | AV92: 0 | AW92: 0 | AX92: 0 | AY92: 0 | AZ92: 0 | BA92: 0 | BB92: 0 | BC92: 0
C93: 89 | D93: 156 | E93: 55 | F93: 101 | H93: 41 | I93: 11 | J93: 30 | K93: 16 | L93: 5 | M93: 11 | N93: 80 | O93: 34 | P93: 46 | Q93: 1 | S93: 1 | T93: 0 | U93: 0 | V93: 0 | X93: 0 | Y93: 15 | Z93: 4 | AA93: 11 | AB93: 0 | AC93: 0 | AD93: 0 | AE93: 0 | AF93: 0 | AG93: 0 | AH93: 2 | AI93: 0 | AJ93: 2 | AK93: 0 | AL93: 0 | AN93: 0 | AO93: 0 | AP93: 0 | AQ93: 0 | AR93: 0 | AS93: 0 | AT93: 0 | AU93: 0 | AV93: 0 | AW93: 0 | AX93: 1 | AY93: 0 | AZ93: 1 | BA93: 0 | BB93: 0 | BC93: 0
C94: 90 | D94: 111 | E94: 38 | F94: 73 | H94: 38 | I94: 5 | J94: 33 | K94: 5 | L94: 3 | M94: 2 | N94: 58 | O94: 27 | P94: 31 | Q94: 0 | S94: 0 | T94: 0 | U94: 0 | V94: 0 | X94: 0 | Y94: 7 | Z94: 1 | AA94: 6 | AB94: 0 | AC94: 0 | AD94: 0 | AE94: 0 | AF94: 0 | AG94: 0 | AH94: 1 | AI94: 0 | AJ94: 1 | AK94: 0 | AL94: 0 | AN94: 0 | AO94: 0 | AP94: 0 | AQ94: 0 | AR94: 0 | AS94: 0 | AT94: 0 | AU94: 0 | AV94: 0 | AW94: 0 | AX94: 2 | AY94: 2 | AZ94: 0 | BA94: 0 | BB94: 0 | BC94: 0
C95: 91 | D95: 88 | E95: 30 | F95: 58 | H95: 28 | I95: 7 | J95: 21 | K95: 11 | L95: 4 | M95: 7 | N95: 37 | O95: 13 | P95: 24 | Q95: 0 | S95: 0 | T95: 0 | U95: 0 | V95: 0 | X95: 0 | Y95: 10 | Z95: 5 | AA95: 5 | AB95: 0 | AC95: 0 | AD95: 0 | AE95: 0 | AF95: 0 | AG95: 0 | AH95: 0 | AI95: 0 | AJ95: 0 | AK95: 1 | AL95: 0 | AN95: 1 | AO95: 0 | AP95: 0 | AQ95: 0 | AR95: 0 | AS95: 0 | AT95: 0 | AU95: 0 | AV95: 0 | AW95: 0 | AX95: 1 | AY95: 1 | AZ95: 0 | BA95: 0 | BB95: 0 | BC95: 0
C96: 92 | D96: 69 | E96: 17 | F96: 52 | H96: 19 | I96: 2 | J96: 17 | K96: 5 | L96: 1 | M96: 4 | N96: 34 | O96: 9 | P96: 25 | Q96: 0 | S96: 0 | T96: 0 | U96: 0 | V96: 0 | X96: 0 | Y96: 8 | Z96: 3 | AA96: 5 | AB96: 0 | AC96: 0 | AD96: 0 | AE96: 0 | AF96: 0 | AG96: 0 | AH96: 3 | AI96: 2 | AJ96: 1 | AK96: 0 | AL96: 0 | AN96: 0 | AO96: 0 | AP96: 0 | AQ96: 0 | AR96: 0 | AS96: 0 | AT96: 0 | AU96: 0 | AV96: 0 | AW96: 0 | AX96: 0 | AY96: 0 | AZ96: 0 | BA96: 0 | BB96: 0 | BC96: 0
C97: 93 | D97: 54 | E97: 21 | F97: 33 | H97: 13 | I97: 2 | J97: 11 | K97: 7 | L97: 2 | M97: 5 | N97: 29 | O97: 15 | P97: 14 | Q97: 0 | S97: 0 | T97: 0 | U97: 0 | V97: 0 | X97: 0 | Y97: 3 | Z97: 0 | AA97: 3 | AB97: 0 | AC97: 0 | AD97: 0 | AE97: 0 | AF97: 0 | AG97: 0 | AH97: 0 | AI97: 0 | AJ97: 0 | AK97: 0 | AL97: 0 | AN97: 0 | AO97: 1 | AP97: 1 | AQ97: 0 | AR97: 0 | AS97: 0 | AT97: 0 | AU97: 0 | AV97: 0 | AW97: 0 | AX97: 1 | AY97: 1 | AZ97: 0 | BA97: 0 | BB97: 0 | BC97: 0
C98: 94 | D98: 45 | E98: 15 | F98: 30 | H98: 15 | I98: 2 | J98: 13 | K98: 1 | L98: 0 | M98: 1 | N98: 25 | O98: 12 | P98: 13 | Q98: 0 | S98: 0 | T98: 0 | U98: 0 | V98: 0 | X98: 0 | Y98: 2 | Z98: 0 | AA98: 2 | AB98: 0 | AC98: 0 | AD98: 0 | AE98: 0 | AF98: 0 | AG98: 0 | AH98: 0 | AI98: 0 | AJ98: 0 | AK98: 0 | AL98: 0 | AN98: 0 | AO98: 0 | AP98: 0 | AQ98: 0 | AR98: 0 | AS98: 0 | AT98: 0 | AU98: 0 | AV98: 0 | AW98: 0 | AX98: 2 | AY98: 1 | AZ98: 1 | BA98: 0 | BB98: 0 | BC98: 0
C99: 95 | D99: 25 | E99: 7 | F99: 18 | H99: 11 | I99: 2 | J99: 9 | K99: 1 | L99: 1 | M99: 0 | N99: 12 | O99: 4 | P99: 8 | Q99: 0 | S99: 0 | T99: 0 | U99: 0 | V99: 0 | X99: 0 | Y99: 1 | Z99: 0 | AA99: 1 | AB99: 0 | AC99: 0 | AD99: 0 | AE99: 0 | AF99: 0 | AG99: 0 | AH99: 0 | AI99: 0 | AJ99: 0 | AK99: 0 | AL99: 0 | AN99: 0 | AO99: 0 | AP99: 0 | AQ99: 0 | AR99: 0 | AS99: 0 | AT99: 0 | AU99: 0 | AV99: 0 | AW99: 0 | AX99: 0 | AY99: 0 | AZ99: 0 | BA99: 0 | BB99: 0 | BC99: 0
C100: 96 | D100: 20 | E100: 4 | F100: 16 | H100: 4 | I100: 0 | J100: 4 | K100: 0 | L100: 0 | M100: 0 | N100: 15 | O100: 4 | P100: 11 | Q100: 0 | S100: 0 | T100: 0 | U100: 0 | V100: 0 | X100: 0 | Y100: 0 | Z100: 0 | AA100: 0 | AB100: 0 | AC100: 0 | AD100: 0 | AE100: 0 | AF100: 0 | AG100: 0 | AH100: 0 | AI100: 0 | AJ100: 0 | AK100: 0 | AL100: 0 | AN100: 0 | AO100: 0 | AP100: 0 | AQ100: 0 | AR100: 0 | AS100: 0 | AT100: 0 | AU100: 0 | AV100: 0 | AW100: 0 | AX100: 1 | AY100: 0 | AZ100: 1 | BA100: 0 | BB100: 0 | BC100: 0
C101: 97 | D101: 11 | E101: 6 | F101: 5 | H101: 2 | I101: 1 | J101: 1 | K101: 1 | L101: 1 | M101: 0 | N101: 8 | O101: 4 | P101: 4 | Q101: 0 | S101: 0 | T101: 0 | U101: 0 | V101: 0 | X101: 0 | Y101: 0 | Z101: 0 | AA101: 0 | AB101: 0 | AC101: 0 | AD101: 0 | AE101: 0 | AF101: 0 | AG101: 0 | AH101: 0 | AI101: 0 | AJ101: 0 | AK101: 0 | AL101: 0 | AN101: 0 | AO101: 0 | AP101: 0 | AQ101: 0 | AR101: 0 | AS101: 0 | AT101: 0 | AU101: 0 | AV101: 0 | AW101: 0 | AX101: 0 | AY101: 0 | AZ101: 0 | BA101: 0 | BB101: 0 | BC101: 0
C102: 98 | D102: 5 | E102: 2 | F102: 3 | H102: 2 | I102: 0 | J102: 2 | K102: 0 | L102: 0 | M102: 0 | N102: 2 | O102: 1 | P102: 1 | Q102: 0 | S102: 0 | T102: 0 | U102: 0 | V102: 0 | X102: 0 | Y102: 0 | Z102: 0 | AA102: 0 | AB102: 0 | AC102: 0 | AD102: 0 | AE102: 0 | AF102: 0 | AG102: 0 | AH102: 1 | AI102: 1 | AJ102: 0 | AK102: 0 | AL102: 0 | AN102: 0 | AO102: 0 | AP102: 0 | AQ102: 0 | AR102: 0 | AS102: 0 | AT102: 0 | AU102: 0 | AV102: 0 | AW102: 0 | AX102: 0 | AY102: 0 | AZ102: 0 | BA102: 0 | BB102: 0 | BC102: 0
C103: 99 | D103: 8 | E103: 2 | F103: 6 | H103: 2 | I103: 0 | J103: 2 | K103: 1 | L103: 0 | M103: 1 | N103: 4 | O103: 1 | P103: 3 | Q103: 0 | S103: 0 | T103: 0 | U103: 0 | V103: 0 | X103: 0 | Y103: 0 | Z103: 0 | AA103: 0 | AB103: 0 | AC103: 0 | AD103: 0 | AE103: 0 | AF103: 0 | AG103: 0 | AH103: 0 | AI103: 0 | AJ103: 0 | AK103: 0 | AL103: 0 | AN103: 0 | AO103: 0 | AP103: 0 | AQ103: 0 | AR103: 0 | AS103: 0 | AT103: 0 | AU103: 0 | AV103: 0 | AW103: 0 | AX103: 1 | AY103: 1 | AZ103: 0 | BA103: 0 | BB103: 0 | BC103: 0
C104: 100 | D104: 2 | E104: 1 | F104: 1 | H104: 0 | I104: 0 | J104: 0 | K104: 0 | L104: 0 | M104: 0 | N104: 1 | O104: 0 | P104: 1 | Q104: 0 | S104: 0 | T104: 0 | U104: 0 | V104: 0 | X104: 0 | Y104: 0 | Z104: 0 | AA104: 0 | AB104: 0 | AC104: 0 | AD104: 0 | AE104: 0 | AF104: 0 | AG104: 0 | AH104: 0 | AI104: 0 | AJ104: 0 | AK104: 0 | AL104: 0 | AN104: 0 | AO104: 0 | AP104: 0 | AQ104: 0 | AR104: 0 | AS104: 0 | AT104: 0 | AU104: 0 | AV104: 0 | AW104: 0 | AX104: 1 | AY104: 1 | AZ104: 0 | BA104: 0 | BB104: 0 | BC104: 0
C105: 101 | D105: 4 | E105: 1 | F105: 3 | H105: 2 | I105: 1 | J105: 1 | K105: 0 | L105: 0 | M105: 0 | N105: 2 | O105: 0 | P105: 2 | Q105: 0 | S105: 0 | T105: 0 | U105: 0 | V105: 0 | X105: 0 | Y105: 0 | Z105: 0 | AA105: 0 | AB105: 0 | AC105: 0 | AD105: 0 | AE105: 0 | AF105: 0 | AG105: 0 | AH105: 0 | AI105: 0 | AJ105: 0 | AK105: 0 | AL105: 0 | AN105: 0 | AO105: 0 | AP105: 0 | AQ105: 0 | AR105: 0 | AS105: 0 | AT105: 0 | AU105: 0 | AV105: 0 | AW105: 0 | AX105: 0 | AY105: 0 | AZ105: 0 | BA105: 0 | BB105: 0 | BC105: 0
C106: 103 | D106: 2 | E106: 0 | F106: 2 | H106: 0 | I106: 0 | J106: 0 | K106: 0 | L106: 0 | M106: 0 | N106: 2 | O106: 0 | P106: 2 | Q106: 0 | S106: 0 | T106: 0 | U106: 0 | V106: 0 | X106: 0 | Y106: 0 | Z106: 0 | AA106: 0 | AB106: 0 | AC106: 0 | AD106: 0 | AE106: 0 | AF106: 0 | AG106: 0 | AH106: 0 | AI106: 0 | AJ106: 0 | AK106: 0 | AL106: 0 | AN106: 0 | AO106: 0 | AP106: 0 | AQ106: 0 | AR106: 0 | AS106: 0 | AT106: 0 | AU106: 0 | AV106: 0 | AW106: 0 | AX106: 0 | AY106: 0 | AZ106: 0 | BA106: 0 | BB106: 0 | BC106: 0
C107: 111 | D107: 1 | E107: 1 | F107: 0 | H107: 0 | I107: 0 | J107: 0 | K107: 0 | L107: 0 | M107: 0 | N107: 1 | O107: 1 | P107: 0 | Q107: 0 | S107: 0 | T107: 0 | U107: 0 | V107: 0 | X107: 0 | Y107: 0 | Z107: 0 | AA107: 0 | AB107: 0 | AC107: 0 | AD107: 0 | AE107: 0 | AF107: 0 | AG107: 0 | AH107: 0 | AI107: 0 | AJ107: 0 | AK107: 0 | AL107: 0 | AN107: 0 | AO107: 0 | AP107: 0 | AQ107: 0 | AR107: 0 | AS107: 0 | AT107: 0 | AU107: 0 | AV107: 0 | AW107: 0 | AX107: 0 | AY107: 0 | AZ107: 0 | BA107: 0 | BB107: 0 | BC107: 0
